Cogmind - Beta 10.1 @@@ ROGUE MODE // 2020.09.27 @ 12:46:41 Player: Missing94p15TImesinARow Result: Escaped singularity! Performance ------------- Evolutions (9) 4500 Regions Visited (38) 7600 Robots Destroyed (460) 2300 Value Destroyed (25408) 25408 Prototype IDs (118) 2360 Alien Tech Used (14) 2800 Bonus (45172) 45172 TOTAL SCORE: 90140 Bonus ------- High Alert Combat Kills 3323 Follower Combat Kills 2097 Entered Garrisons 1200 Used RIF Installer 3000 Network Hubs Disabled 400 Aligned with FarCom 300 A7 Reached Mainframe 300 Found Hidden Lab 3000 Destroyed MAIN.C Guards 500 Met MAIN.C 5000 Destroyed MAIN.C Shell 5000 Destroyed MAIN.C 10000 Met Architect 300 Destroyed A8 300 Destroyed A6 400 Destroyed Architect 15000 Win 3000 Friendly Fire -7948 Cogmind --------- Core Integrity 273/1600 Matter 245/300 Energy 98/100 System Corruption 0% Temperature Cool (0) Movement Core (50) Location Near Former Tau Ceti IV Parts ------- > --- POWER (1) -------- (None) > --- PROPULSION (4) --- (None) > --- UTILITY (16) ----- (None) > --- WEAPON (4) ------- (None) > --- INVENTORY (6) ---- Experimental Biometal Heavy Treads Peak State ------------ > --- POWER ------------ Zero-point Reactor > --- PROPULSION ------- Experimental Biometal Heavy Treads Experimental Biometal Heavy Treads > --- UTILITY ---------- Experimental Coolant Injector High-capacity Storage Unit High-capacity Storage Unit High-capacity Storage Unit Experimental Energy Well Experimental Energy Well Dimensional Manipulator Spectral Analyzer Experimental Targeting Computer Experimental Armor Integrity Analyzer Advanced Weapon Cycler Experimental Phase Shifter Improved Utility Shielding Layered Heavy Armor Plating AEGIS Remote Shield > --- WEAPON ----------- Improved Potential Cannon Sigix Broadsword > --- INVENTORY -------- Zero-point Reactor Armored Heavy Treads Experimental Biometal Heavy Treads Experimental Biometal Heavy Treads Experimental Coolant Injector Experimental Matter Compressor Long-range Terrain Scanner Advanced Terrain Scan Processor Advanced Weapon Cycler Femtoactuators Improved Weapon Shielding Improved Weapon Shielding Experimental Thermal Shield AEGIS Remote Shield Supersonic Drone Bay HERF Cannon Potential Cannon Potential Cannon Cooled Nova Cannon Graviton Cannon Enhanced Gamma Bomb Array Enhanced Force Lance [Rating: 235] Favorites ----------- Power Antimatter Reactor Engine Improved Ion Engine Power Core Micro Fission Core Reactor Antimatter Reactor Propulsion Armored Heavy Treads Treads Armored Heavy Treads Leg Armored Leg Wheel Compact Wheel Hover Unit Combat Airjet Utility High-capacity Storage Unit Device Experimental Coolant Injector Storage High-capacity Storage Unit Processor Experimental Signal Interpreter Hackware Relay Coupler [Hunter] Protection Damper Plating Artifact Matter Drive Weapon KE Penetrator Energy Gun Beam Rifle Energy Cannon EMDS Ballistic Gun KE Penetrator Ballistic Cannon Improved Light Cannon Launcher Improved Proton Missile Launcher Special Weapon Remote Datajack Impact Weapon Powered Hammer Slashing Weapon Sigix Broadsword Piercing Weapon Enhanced Force Lance Special Melee Weapon Improved Datajack Build | -11 -10 -10 -9 -9 -9 -8 -8 -8 -7 -7 -6 -6 -6 -6 -6 -6 -5 -5 -5 -5 -5 -5 -4 -4 -4 -4 -4 -4 -4 -3 -3 -3 -2 -2 -2 -1 -1 -1 ------- Run | Scr Mat Min Mat Min Exi Min Mat Gar Fac Gar Fac Was Fac Gar Fac Gar Fac Was Fac Gar Fac Gar Fac Was Fac Ext Cet Arc Hub Res Arm Lab Res Qua Sec Acc Com Ac0 Slots Evolved 18 | . . . 2 . . . 2 . 2 . 2 . . . . . 2 . . . . . 2 . . . . . . 2 . . 2 . . 2 . . Power . | . . . . . . . . . . . . . . . . . . . . . . . . . . . . . . . . . . . . . . . Propulsion 2 | . . . . . . . . . 1 . . . . . . . 1 . . . . . . . . . . . . . . . . . . . . . Utility 14 | . . . . . . . 2 . 1 . 2 . . . . . 1 . . . . . 2 . . . . . . 2 . . 2 . . 2 . . Weapon 2 | . . . 2 . . . . . . . . . . . . . . . . . . . . . . . . . . . . . . . . . . . Parts Attached 755 | 8 4 6 27 7 5 14 12 1 4 27 32 9 10 4 21 13 8 10 10 14 18 12 12 14 9 37 8 6 19 29 51 6 10 36 46 23 128 45 Power 34 | 1 . 1 . . . 1 1 . . 1 4 . . . . . . 1 . . . . . 1 1 3 1 . 1 1 . . . 6 2 . 7 1 Engine 7 | 1 . 1 . . . 1 1 . . 1 2 . . . . . . . . . . . . . . . . . . . . . . . . . . . Core 8 | . . . . . . . . . . . 2 . . . . . . . . . . . . . . 2 . . . 1 . . . 3 . . . . Reactor 19 | . . . . . . . . . . . . . . . . . . 1 . . . . . 1 1 1 1 . 1 . . . . 3 2 . 7 1 Propulsion 81 | 2 . 1 5 1 . 5 . . 1 10 5 . . 2 4 2 . 1 1 . . . 3 6 2 2 2 . 1 1 1 . 1 . 2 4 12 4 Treads 57 | 2 . 1 5 1 . 2 . . . 5 . . . . . . . 1 1 . . . 1 6 2 2 2 . 1 1 1 . 1 . 2 4 12 4 Leg 9 | . . . . . . . . . . 5 . . . 2 . . . . . . . . 2 . . . . . . . . . . . . . . . Wheel 14 | . . . . . . 3 . . 1 . 5 . . . 3 2 . . . . . . . . . . . . . . . . . . . . . . Hover 1 | . . . . . . . . . . . . . . . 1 . . . . . . . . . . . . . . . . . . . . . . . Flight . | . . . . . . . . . . . . . . . . . . . . . . . . . . . . . . . . . . . . . . . Utility 330 | 2 2 2 4 1 2 2 6 1 2 6 9 5 5 . 7 7 6 3 5 7 8 6 8 4 5 21 3 4 8 15 24 3 6 24 16 8 65 18 Device 176 | 1 1 1 3 . 1 1 4 1 1 3 4 3 . . 2 4 4 2 3 3 8 . 3 3 2 10 1 2 1 11 18 2 3 19 9 . 29 13 Storage 32 | . 1 1 1 1 1 1 . . 1 . 1 . . . 1 . . . 1 1 . . 1 . . 1 . 1 . . . . . 4 . 2 12 . Processor 21 | 1 . . . . . . 1 . . . . . 1 . . . 1 . . . . 1 . . . . . . . 3 1 . . . 3 1 7 1 Hackware 40 | . . . . . . . . . . . 1 . . . 1 . 1 . . 2 . 4 3 . 2 5 . . 4 1 4 . 3 1 2 5 1 . Protection 59 | . . . . . . . 1 . . 3 3 2 4 . 3 3 . 1 1 1 . 1 1 1 1 5 2 1 3 . 1 1 . . . . 16 4 Artifact 2 | . . . . . . . . . . . . . . . . . . . . . . . . . . . . . . . . . . . 2 . . . Weapon 310 | 3 2 2 18 5 3 6 5 . 1 10 14 4 5 2 10 4 2 5 4 7 10 6 1 3 1 11 2 2 9 12 26 3 3 6 26 11 44 22 Energy Gun 16 | 2 . . . . . . 1 . . 2 3 . . . . . . . . . . . . . . 2 . . 1 . 2 . . . 1 1 1 . Energy Cannon 57 | . . 2 4 . 1 . . . . 1 . . . . 1 . . . 1 . . . . . . 1 . . . . . . 1 2 15 2 10 16 Ballistic Gun 109 | 1 . . 9 4 1 . 1 . 1 3 5 2 3 1 5 2 . 3 3 2 4 3 . 1 . 4 1 1 7 7 14 2 1 2 2 4 10 . Ballistic Cannon 12 | . 2 . 2 . . 3 . . . . . . . . . . . . . . . . . . . 2 . 1 . . . . . . . . 1 1 Launcher 43 | . . . 3 1 1 2 2 . . 4 . . 2 1 3 2 . . . 2 1 1 . 1 . 1 . . . . 3 . . . . 2 10 1 Special Weapon 29 | . . . . . . . . . . . . 2 . . . . 1 . . . 1 1 1 . 1 1 . . . 3 3 . . 1 6 1 7 . Impact Weapon 29 | . . . . . . . 1 . . . 4 . . . 1 . 1 2 . 3 4 1 . 1 . . 1 . . 2 4 1 . . . 1 2 . Slashing Weapon 9 | . . . . . . . . . . . . . . . . . . . . . . . . . . . . . . . . . 1 1 2 . 3 2 Piercing Weapon 2 | . . . . . . . . . . . . . . . . . . . . . . . . . . . . . . . . . . . . . . 2 Special Melee Weapon 4 | . . . . . . 1 . . . . 2 . . . . . . . . . . . . . . . . . 1 . . . . . . . . . Unidentified Prototypes 54 | . . . 3 . 1 . 1 . . . . . . . 1 . . . 1 . . . . 2 . . 3 1 . . 4 2 3 5 11 . 16 . Parts Lost 72 | . . 1 . . 1 5 1 . . 14 . . . 1 2 . . . . . 2 . . . . 4 . . 3 1 1 . . 1 3 4 13 15 Power 3 | . . . . . 1 . . . . 1 . . . . . . . . . . . . . . . . . . . . . . . . . . 1 . Propulsion 15 | . . 1 . . . 2 . . . 4 . . . 1 1 . . . . . . . . . . . . . . . . . . . . 1 3 2 Utility 38 | . . . . . . 1 1 . . 3 . . . . 1 . . . . . 1 . . . . 4 . . 1 1 1 . . 1 2 1 9 11 Weapon 16 | . . . . . . 2 . . . 6 . . . . . . . . . . 1 . . . . . . . 2 . . . . . 1 2 . 2 Highest Loss Streak 8 | . . 1 . . 1 5 1 . . 7 . . . 1 2 . . . . . 1 . . . . 1 . . 2 1 1 . . 1 1 2 4 8 Average Slot Usage (%) 83 | . 98 99 99 100 82 61 87 90 92 86 92 82 91 92 85 79 75 75 75 75 75 83 88 80 83 83 84 88 86 79 84 83 83 81 78 86 83 78 Engine 1 | . 14 14 11 11 7 5 9 9 7 6 2 . . . . . . . . . . . . . . . . . . . . . . . . . . . Core 1 | . . . . . . . . . . . 3 6 6 6 6 6 5 1 . . . . . . . 1 1 . . 2 4 4 4 2 . . . . Reactor 2 | . . . . . . . . . . . . . . . . . . 3 5 5 5 5 5 5 5 3 3 5 5 1 . . . 1 4 4 3 3 Treads 9 | . 28 27 22 22 22 6 . . . 17 . . . . . . . 3 9 11 11 11 8 9 9 10 10 10 9 9 8 9 8 8 7 7 10 7 Wheel 2 | . . . . . . 10 18 18 23 1 19 20 20 15 15 13 11 6 1 . . . . . . . . . . . . . . . . . . . Device 10 | . 14 14 11 3 . . 9 9 14 12 10 15 11 6 7 6 9 11 10 7 5 1 7 2 4 5 15 13 3 6 5 4 11 10 4 4 20 24 Storage 12 | . 13 14 11 18 12 10 9 9 7 7 6 6 6 6 7 6 5 5 5 8 11 11 10 10 10 11 10 11 10 9 9 9 8 13 16 15 18 17 Processor 6 | . 1 . . . . . 4 . . . . . 5 6 6 6 8 11 11 11 11 13 5 5 5 5 5 5 5 4 4 4 4 4 7 16 11 14 Hackware 10 | . . . . . . . . . . . 5 1 . . 2 . 2 . . . . 12 25 21 21 19 10 10 24 19 27 26 25 21 22 27 6 . Protection 4 | . . . . . . . 2 9 7 7 15 4 13 20 8 12 5 5 5 4 4 2 1 5 5 5 9 9 5 4 2 3 4 4 1 . 3 3 Energy Cannon 1 | . . 2 26 6 2 . . . . 3 . . . . . . . . 2 . . . . . . . 1 . . . . . . 4 1 3 2 3 Ballistic Gun 11 | . 2 . 9 37 37 2 2 . 2 15 22 25 25 25 25 22 11 20 19 18 20 16 10 13 5 11 13 20 20 18 16 16 11 2 . 1 1 . Ballistic Cannon 1 | . 23 25 7 . . 8 9 9 7 1 . . . . . . . . . . . . . . . 2 . . . . . . . . . . . . Launcher 1 | . . . . . . 13 10 18 11 5 . . . . . 3 . . . . . 1 1 . 5 1 . . . . . . . . . 1 . . Slashing Weapon 1 | . . . . . . . . . . . . . . . . . . . . . . . . . . . . . . . . . . 3 3 4 3 2 Naked Turns 20 | . . . . . . 15 . . . . . . . . . . . . . . . . . . . . . . . . . . . . . . . 5 Heaviest Build 224 | 10 18 32 41 68 105 105 117 117 119 119 121 156 156 122 161 118 115 112 143 147 145 135 136 137 146 146 133 126 141 144 139 115 121 147 154 122 224 187 Greatest Support 205 | 40 40 40 40 40 40 40 26 26 42 62 44 44 44 44 44 44 40 40 140 140 140 140 140 140 140 145 160 160 160 155 140 120 135 135 175 175 180 205 Greatest Overweight (x) 39 | . . 1 1 1 2 4 4 4 2 5 4 3 3 4 5 4 2 3 3 1 1 . 4 4 2 1 1 39 1 . . . . 1 1 . 1 1 Average Overweight (x) . | . . . . . 1 2 3 4 2 1 2 2 2 3 3 1 2 2 1 . . . . . . . . 4 . . . . . . . . . . Largest Inventory Capacity 34 | 4 6 10 10 18 24 24 24 24 24 24 24 24 24 24 32 12 12 12 20 20 20 20 20 20 20 20 20 20 20 20 20 20 20 24 26 26 34 30 Average Capacity 21 | 4 5 7 10 15 22 22 24 24 24 24 24 24 24 24 20 12 12 12 12 17 20 20 20 20 20 20 20 20 20 20 20 20 20 23 24 26 30 24 Most Carried 34 | 4 6 8 10 18 24 24 21 20 19 24 24 24 24 24 24 12 12 12 12 20 20 20 20 20 20 20 20 20 20 20 20 20 20 24 26 26 34 29 Average Carried 20 | 1 5 6 8 14 21 12 16 20 18 19 23 23 23 24 18 11 11 12 11 16 19 19 19 19 19 19 19 19 19 18 19 19 19 22 24 25 27 20 Final Capacity 30 | 4 6 10 10 18 24 24 24 24 24 24 24 24 24 24 12 12 12 12 12 20 20 20 20 20 20 20 20 20 20 20 20 20 20 24 26 26 30 6 Final Carried 26 | 4 5 8 10 18 24 15 21 20 19 24 23 24 24 24 12 12 12 12 12 20 19 19 19 20 19 20 20 20 18 20 20 20 20 24 26 25 26 2 Class Distribution -------------------- 22% | Botlord-Mutant 9% | Scavenger-Gladiator 7% | Bothacker-Mutant 7% | Scavenger-Mutant 7% | Botlord-Tank 5% | Botlord-Gunner 5% | Scavenger-Tank 5% | Botlord-Skirmisher 4% | Mutant 3% | Hauler-Tank 3% | Gunner 3% | Hauler-Mutant 3% | Scavenger-Skirmisher Dominant Class ---------------- Mutant | -10/Materials Mutant | -10/Mines Gunner | -9/Materials Gunner | -9/Mines Hauler-Gunner | -9/Exiles Hauler-Mutant | -8/Mines Hauler-Mutant | -8/Materials Hauler-Mutant | -8/Garrison Hauler-Mutant | -7/Factory Scavenger-Tank | -7/Garrison Bothacker-Tank | -6/Factory Scavenger-Tank | -6/Waste Hauler-Tank | -6/Factory Hauler-Tank | -6/Garrison Hauler-Tank | -6/Factory Scavenger-Mutant | -6/Garrison Scavenger-Mutant | -5/Factory Scavenger-Skirmisher | -5/Waste Scavenger-Skirmisher | -5/Factory Bothacker-Gunner | -5/Garrison Botlord-Skirmisher | -5/Factory Botlord-Mutant | -5/Garrison Botlord-Mutant | -4/Factory Botlord-Mutant | -4/Waste Botlord-Mutant | -4/Factory Botlord-Mutant | -4/Extension Botlord-Mutant | -4/Cetus Botlord-Tank | -4/Archives Botlord-Tank | -4/Hub_04(d) Botlord-Skirmisher | -3/Research Botlord-Gunner | -3/Armory Botlord-Tank | -3/Lab Botlord-Skirmisher | -2/Research Bothacker-Mutant | -2/Quarantine Botlord-Mutant | -2/Section 7 Botlord-Mutant | -1/Access Scavenger-Gladiator | -1/Command Hauler-Assassin | -1/Access_0 Resources | -11 -10 -10 -9 -9 -9 -8 -8 -8 -7 -7 -6 -6 -6 -6 -6 -6 -5 -5 -5 -5 -5 -5 -4 -4 -4 -4 -4 -4 -4 -3 -3 -3 -2 -2 -2 -1 -1 -1 ----------- Run | Scr Mat Min Mat Min Exi Min Mat Gar Fac Gar Fac Was Fac Gar Fac Gar Fac Was Fac Gar Fac Gar Fac Was Fac Ext Cet Arc Hub Res Arm Lab Res Qua Sec Acc Com Ac0 Matter Collected 22977 | 355 142 148 465 265 153 305 261 109 53 856 619 1028 165 100 584 591 . 620 138 695 939 460 128 306 68 1262 135 550 487 772 1867 . 50 659 1286 450 5340 566 Remotely 2973 | . . . . . . . . . . . . 855 . . . 111 . . . 461 415 . . . . 250 . . . 109 772 . . . . . . . Salvage Created 29236 | 318 142 106 587 59 125 161 291 134 53 901 566 1327 236 196 658 661 . 1572 75 872 1212 554 158 620 197 1644 163 500 816 726 2079 . 26 852 2270 1581 5515 1283 Parts 1183 | 35 6 5 59 9 4 6 11 11 1 35 26 12 10 2 34 21 . 28 2 34 49 36 4 7 12 58 6 29 43 57 86 . 3 50 89 61 181 61 Haulers Intercepted 7 | . . . 3 . . . 2 . . . . . . . . . . . . . 1 . . . . . . . . . . . . 1 . . . . Recyclers Shooed 12 | . . 1 . . . 2 . . . . 1 . . . . . . . 2 . 3 . . . . . . . . 1 . . 1 . . . 1 . Parts Field Recycled . | . . . . . . . . . . . . . . . . . . . . . . . . . . . . . . . . . . . . . . . Retrieved Matter . | . . . . . . . . . . . . . . . . . . . . . . . . . . . . . . . . . . . . . . . Parts Self-Destructed . | . . . . . . . . . . . . . . . . . . . . . . . . . . . . . . . . . . . . . . . Prevented . | . . . . . . . . . . . . . . . . . . . . . . . . . . . . . . . . . . . . . . . Kills | -11 -10 -10 -9 -9 -9 -8 -8 -8 -7 -7 -6 -6 -6 -6 -6 -6 -5 -5 -5 -5 -5 -5 -4 -4 -4 -4 -4 -4 -4 -3 -3 -3 -2 -2 -2 -1 -1 -1 ------- Run | Scr Mat Min Mat Min Exi Min Mat Gar Fac Gar Fac Was Fac Gar Fac Gar Fac Was Fac Gar Fac Gar Fac Was Fac Ext Cet Arc Hub Res Arm Lab Res Qua Sec Acc Com Ac0 Combat Hostiles Destroyed 346 | . 4 3 17 4 5 . 4 7 . 24 5 5 3 3 7 10 . 5 . 17 12 14 . . 3 17 1 3 10 9 28 . . 8 22 17 59 20 Melee 30 | . . . 1 . . . . . . . . . . . . . . . . . . 1 . . . . . . . . . . . 3 13 5 6 1 Guns 154 | . . . . 4 3 . . . . 6 5 5 1 1 4 6 . 5 . 13 10 10 . . 3 9 . 2 10 9 25 . . . 1 1 21 . Cannons 43 | . 4 3 10 . . . 1 1 . 5 . . . . . . . . . . . . . . . 1 . 1 . . . . . 2 4 1 4 6 AOE 84 | . . . 5 . 2 . 3 6 . 13 . . 1 2 2 3 . . . 4 2 3 . . . 4 . . . . 2 . . . . 3 24 5 Classes Destroyed 23 | 3 1 2 5 . . . . . . 2 1 1 . . 1 . . 1 . . . 2 . . . 2 . . . . 1 . . . 1 . . . Worker 25 | 2 . 4 2 . . . 2 . . . 2 . . . 3 . . . . . 3 . 1 . . 2 . . 2 1 . . . . . . 1 . Builder 10 | . . . 2 . . . . . . . . . . . . . . . . . 2 . 1 . 1 1 . . 1 . . . . 1 . 1 . . Tunneler 11 | 9 . . 1 . . . . . . . . . . . . . . . . . . . . . . 1 . . . . . . . . . . . . Hauler 7 | . . . 3 . . . 2 . . . . . . . . . . . . . 1 . . . . . . . . . . . . 1 . . . . Recycler 19 | 1 1 . . . . 2 1 . 1 . 2 . . . 1 . . . . . 2 . 1 . . 2 . . . . . . . 1 2 . 2 . Mechanic 1 | . . . 1 . . . . . . . . . . . . . . . . . . . . . . . . . . . . . . . . . . . Operator 10 | . . . . . . . . . . . . . . . . . . . . . . . . . . 1 . 7 . . . . 1 . . 1 . . Watcher 15 | . . . 3 . . . . . . . 1 . 1 . 2 . . . . . 3 . . . . . . . . 1 . . . 1 1 . 2 . Swarmer 61 | . . . 7 4 . . 2 4 . 4 . . . . . . . . . 4 . 5 . . . 5 . . . . 3 . . . 4 . 19 . Saboteur 2 | . . . . . . . . . . . . . . . . . . . . . . 2 . . . . . . . . . . . . . . . . Grunt 107 | . 4 . 8 . . . 1 3 . 16 2 . 2 3 2 5 . . . 7 7 3 . . . 6 1 . 2 . 8 . . . 7 7 13 . Brawler 11 | . . . . . . . . . . 1 . . 1 . . 2 . . . . 2 . . . . 1 . . . . 2 . . . 1 1 . . Duelist 9 | . . . . . . . . . . 1 . . . . 1 1 . . . . . . . . . 1 . . . . . . . . 1 1 3 . Protector 2 | . . . . . . . . . . . . . . . . . . . . . . . . . . . . . . . 1 . . . . . 1 . Sentry 38 | . . 2 2 . . . 1 . . 2 1 . . . 2 . . . . 2 . . . . . 3 . 3 4 4 3 . . . 1 4 4 . Demolisher 1 | . . . . . . . . . . . . . . . . . . . . . . . . . . . . . . . 1 . . . . . . . Specialist 3 | . . . . . . . . . . . . . . . . . . . . . . 2 . . . . . . . . . . . . . . 1 . Hunter 23 | . . . . . . . . . . . . . . . 2 1 . . . 3 1 2 . . . . . . 4 . 4 . . 1 . 2 3 . Programmer 43 | . . . . . . . . . . . 2 . . . . 1 . . . 1 2 . . . 3 . . . . 5 7 . . 4 7 2 9 . Behemoth 3 | . . . . . . . . . . . . . . . . . . . . . . . . . . 2 . . . . . . . . . . 1 . Compactor 10 | . . . . . . . . . . . . 5 . . . . . 5 . . . . . . . . . . . . . . . . . . . . Quarantine Guard 3 | . . . . . . . . . . . . . . . . . . . . . . . . . . . . . . . . . . 3 . . . . S7 Guard 2 | . . . . . . . . . . . . . . . . . . . . . . . . . . . . . . . . . . . 2 . . . M Guard 2 | . . . . . . . . . . . . . . . . . . . . . . . . . . . . . . . . . . . . . 2 . Enhanced Grunt 9 | . . . . . . . . . . . . . . . . . . . . . . . . . . . . . . . . . . . . . . 9 Enhanced Hunter 8 | . . . . . . . . . . . . . . . . . . . . . . . . . . . . . . . . . . . . . . 8 Combat Programmer 2 | . . . . . . . . . . . . . . . . . . . . . . . . . . . . . . . . . . . . . 2 . Executioner 4 | . . . . . . . . . . . . . . . . . . . . . . . . . . . . . . . . . . . 4 . . . Assembled 7 | . . 1 . . 6 . . . . . . . . . . . . . . . . . . . . . . . . . . . . . . . . . Surgeon 1 | . . . . . . . . . . . . . . . . . . . . 1 . . . . . . . . . . . . . . . . . . Savage 1 | . . . . . . . . . . . . . . . . . . . . . . . . . . 1 . . . . . . . . . . . . Butcher 1 | . . . . . . . . . . . . . . . . . . . . . . . . . . 1 . . . . . . . . . . . . Martyr 2 | . . . . . . . . . . . . . . . . . . 1 1 . . . . . . . . . . . . . . . . . . . Best Kill Streak 15 | 4 2 2 7 4 3 2 4 5 1 8 2 1 3 3 4 4 . 2 . 4 13 3 1 . 2 7 1 4 8 3 5 . 1 1 3 6 15 4 Combat Bots Only 15 | . 2 2 4 4 3 . 3 5 . 8 1 1 3 3 2 4 . 2 . 4 8 3 . . 2 5 1 1 6 3 5 . . 1 3 6 15 4 Max Kills in Single Turn 4 | 1 1 1 3 2 2 1 2 3 1 3 1 1 1 2 2 2 . 1 1 2 4 2 1 . 1 3 1 2 2 1 2 . 1 1 1 1 4 1 Gunslinging 1 | . . . . 1 1 . . . . . . . . . . 1 . . . . 1 1 . . . . . . 1 . . . . . . . 1 . Exploded 4 | . . . 3 . 2 . 1 3 . 3 . . 1 2 2 1 . . . 2 2 2 . . . 2 . . . . 2 . . . . 1 4 1 Melee 1 | . . . 1 . . . . . . . . . . . . . . . . . . 1 . . . . . . . . . . . 1 1 1 1 1 Uniques/NPCs Destroyed 7 | . . . . . 1 . . . . . . . . . . . . . . . . . . . . . 1 . . . . . . . . . 2 3 8R-AWN (-9/Exiles) A7 (-4/Cetus) MAIN.C Shell (-1/Command) MAIN.C (-1/Command) A8 (-1/Access_0) A6 (-1/Access_0) Architect (-1/Access_0) Combat | -11 -10 -10 -9 -9 -9 -8 -8 -8 -7 -7 -6 -6 -6 -6 -6 -6 -5 -5 -5 -5 -5 -5 -4 -4 -4 -4 -4 -4 -4 -3 -3 -3 -2 -2 -2 -1 -1 -1 -------- Run | Scr Mat Min Mat Min Exi Min Mat Gar Fac Gar Fac Was Fac Gar Fac Gar Fac Was Fac Gar Fac Gar Fac Was Fac Ext Cet Arc Hub Res Arm Lab Res Qua Sec Acc Com Ac0 Damage Taken 46428 | . 233 293 335 63 604 873 212 43 18 1473 201 . 154 177 622 377 . . 37 1020 839 603 295 . 581 2461 422 409 1954 726 1911 . 30 2367 4392 2384 12212 8107 Core 2439 | . 13 48 53 7 56 167 . 7 . 124 . . 70 . . . . . . . 16 38 65 . 18 104 26 78 40 27 93 . . 216 230 76 397 470 Absorbed by Shields 12617 | . . . . . . . . . . 94 39 . 36 33 147 . . . . . . . . . . . 129 . . . 383 . . . . . 6746 5010 Reduced by Siege Mode 3176 | . . . . . . . . . . . . . . . . . . . . 46 26 61 . . 38 172 2 14 117 18 85 . . 57 313 78 1553 596 Core Remaining (%) 72 | 100 . 75 . . . 29 . 98 . 82 . . . . . 91 . . . . . 94 . . . . . . 71 . . 90 . . 50 . . 17 Volleys Fired 1207 | 25 17 15 30 6 31 5 13 7 1 62 18 40 9 5 30 26 3 33 1 31 42 23 7 7 30 50 9 28 22 31 81 . 2 35 115 47 135 135 Largest 4 | 2 2 2 4 4 4 1 2 3 3 4 4 4 4 4 4 4 1 4 4 4 4 4 1 3 1 4 1 4 4 4 4 . 1 2 1 2 4 2 Hottest 227 | 60 78 136 227 97 100 48 104 140 127 211 124 94 101 101 101 134 30 99 104 127 149 122 33 96 35 158 110 158 184 131 210 . 120 214 120 120 200 200 Shots Fired 2712 | 34 34 30 108 24 76 5 18 11 3 140 65 153 18 8 92 78 3 99 4 86 149 75 7 21 30 146 9 112 82 115 237 . 2 38 115 52 295 138 Gun 1942 | 34 . . 21 24 60 . 5 3 2 101 65 151 12 4 84 66 . 98 4 82 148 73 1 21 24 101 . 105 82 112 211 . . . 25 12 211 . Cannon 547 | . 34 30 83 . 13 4 9 3 1 25 . . . . 5 . . . . . . . . . . 35 9 7 . . . . 2 36 72 18 40 121 Launcher 146 | . . . 4 . 3 1 4 5 . 14 . . 6 4 3 12 . . . 4 1 2 . . . 5 . . . . 1 . . . . 20 40 17 Special 77 | . . . . . . . . . . . . 2 . . . . 3 1 . . . . 6 . 6 5 . . . 3 25 . . 2 18 2 4 . Kinetic 2040 | 25 34 22 47 24 60 4 9 3 2 106 62 151 12 4 84 66 . 98 4 82 148 73 1 21 24 129 . 112 78 112 209 . . . 13 10 211 . Thermal 318 | 9 . 8 57 . 13 . 5 3 1 20 . . . . . . . . . . . . . . . . . . 4 . . . 2 24 44 14 14 100 Explosive 60 | . . . 4 . 3 . 4 5 . 14 . . . . . 1 . . . 4 1 2 . . . 1 . . . . 1 . . . . . 20 . Electromagnetic 203 | . . . . . . 1 . . . . 3 . 6 4 8 11 . . . . . . . . . 11 9 . . . 2 . . 12 28 24 46 38 Slashing 14 | . . . . . . . . . . . . . . . . . . . . . . . . . . . . . . . . . . . 12 2 . . Robot Hit Streak 45 | 9 7 13 16 6 15 17 11 3 2 22 12 11 5 4 6 10 3 19 6 32 45 15 4 17 23 21 2 19 29 29 34 . . 15 33 11 41 31 Robot Miss Streak 13 | 2 1 2 3 4 2 2 1 2 . 4 5 8 3 2 13 4 . 5 2 4 2 6 3 1 1 6 4 2 2 4 3 . . 1 4 1 2 3 Penetration Max 2 | . . . . . . . . . . . . . . . . . . . . 1 1 1 . . . 2 . 1 1 1 1 . . . . . 1 . Secondary Targets 34 | . . . . 1 1 . . . . 1 . . . . . 1 . 1 . 3 4 3 . . . . . . 4 2 8 . . . . . 5 . Max Gunslinging Chain 2 | . . . . 1 1 . . . . 1 . . . . . 1 . 1 . 1 1 1 . . . . . . 2 1 1 . . . . . 1 . Shots Hit Robots 2199 | 25 18 16 57 11 53 3 14 5 1 100 50 117 10 7 69 63 5 96 5 61 90 54 8 19 28 113 15 74 72 82 187 . 1 37 108 63 298 164 Core Hits 1336 | 12 6 4 34 4 26 2 10 7 1 92 41 56 11 7 53 54 . 67 7 86 84 31 1 4 7 46 3 31 35 33 69 . 1 13 36 33 211 118 Critical Hits 191 | . 1 . 1 1 . . 3 . . 4 1 1 . . . . . . . 3 2 1 . 1 . 19 . 13 9 5 28 . . 3 21 14 33 27 Critical Kills 42 | . . . 1 1 . . . . . 1 . . . . . . . . . 2 1 . . . . 1 . 4 3 2 11 . . 1 7 1 5 1 Critical Parts Destroyed 91 | . 1 . . . . . 2 . . 3 1 . . . . . . . . 1 1 1 . . . 7 . 6 6 3 14 . . 2 10 8 14 11 Melee Attacks 446 | . . . . . . . 3 . . . 9 . . . 1 . 7 5 1 2 12 3 8 . 6 10 12 . 2 4 8 9 5 51 74 54 89 71 Kinetic 4 | . . . . . . . . . . . . . . . . . . . . . . . . . . . . . . . . . . . . . 4 . Impact 99 | . . . . . . . 3 . . . 4 . . . 1 . 7 5 1 2 12 3 8 . 6 10 12 . . 4 8 9 4 . . . . . Slashing 270 | . . . . . . . . . . . . . . . . . . . . . . . . . . . . . . . . . 1 51 74 54 85 5 Piercing 66 | . . . . . . . . . . . . . . . . . . . . . . . . . . . . . . . . . . . . . . 66 Sneak Attacks 65 | . . . . . . . 3 . . . 2 . . . . . 1 1 1 . . 2 3 . 1 9 12 . 2 . 3 . 1 3 13 2 6 . Combat Hostiles 9 | . . . . . . . . . . . . . . . . . . . . . . 1 . . . 3 . . . . 2 . . . 3 . . . Follow-up Attacks . | . . . . . . . . . . . . . . . . . . . . . . . . . . . . . . . . . . . . . . . Damage Inflicted 108873 | 303 353 362 1929 132 1256 74 909 449 26 3121 834 2844 307 331 1301 1727 110 2862 218 2348 3127 1737 303 474 731 4543 862 2043 2032 2285 4409 . 327 2746 6929 4563 26500 23466 Guns 36383 | 303 . . 79 102 800 . 58 15 . 974 730 2844 89 64 1019 826 . 2795 103 1295 2459 1068 . 474 659 2461 . 1928 1998 2243 3772 . . . 311 263 6651 . Cannons 18330 | . 343 347 850 . . 49 164 55 26 506 . . . . 133 . . . . . . . . . . 561 190 115 . . . . . 563 1704 245 1377 11102 Explosions 26887 | . . . 985 . 456 25 454 379 . 1641 104 . 218 267 149 901 . . . 1053 435 460 . . . 701 . . . . 249 . . . . 1174 7010 10226 Melee 26726 | . . . . . . . 233 . . . . . . . . . 110 67 72 . 96 209 241 . 72 788 672 . . . 383 . 260 2181 4861 2881 11462 2138 Ramming 547 | . 10 15 15 30 . . . . . . . . . . . . . . 43 . 137 . 62 . . 32 . . 34 42 5 . 67 2 53 . . . Kinetic 37697 | 258 343 205 268 102 800 49 164 55 26 1245 666 2844 89 64 1019 826 . 2795 103 1295 2459 1068 . 474 659 2895 . 2043 1926 2243 3737 . . . . 201 6776 . Thermal 24603 | 45 . 142 661 . . . 58 15 . 235 . . . . . . . . . . . . . . . 87 . . 72 . . . . 203 1130 104 1529 20322 Explosive 11918 | . . . 985 . 456 . 454 379 . 1641 104 . . . . 238 . . . 1053 435 460 . . . 98 . . . . 249 . . . . . 5366 . Electromagnetic 7134 | . . . . . . 25 . . . . 64 . 218 267 282 663 . . . . . . . . . 643 190 . . . 35 . . 360 574 1315 1492 1006 Impact 2943 | . . . . . . . 233 . . . . . . . . . 110 67 72 . 96 209 241 . 72 788 672 . . . 383 . . . . . . . Slashing 22130 | . . . . . . . . . . . . . . . . . . . . . . . . . . . . . . . . . 260 2181 5172 2943 11337 237 Piercing 1901 | . . . . . . . . . . . . . . . . . . . . . . . . . . . . . . . . . . . . . . 1901 Highest Corruption 10 | . . . . . . . . . . . 1 10 4 4 5 5 . . . . . 1 . . 3 3 . . . . 8 7 . 5 5 . . . Average Corruption 4 | . . . . . . . . . . . 1 6 4 4 4 5 . . . . . 1 . . 2 2 . . . . 6 3 . 4 5 . . . Corruption Purged 21 | . . . . . . . . . . . . 8 . . . . . . . . . . . . . 3 . . . . 2 7 . 1 . . . . Effects 241 | . . . . . . . . . . . 1 31 11 5 19 28 . . . . . 2 . . 2 2 . . . . 28 7 . 36 69 . . . Message Errors 53 | . . . . . . . . . . . 1 6 3 . 3 7 . . . . . 1 . . . . . . . . 4 2 . 6 20 . . . Matter Fused 61 | . . . . . . . . . . . . 5 1 1 4 3 . . . . . . . . 1 . . . . . 7 4 . 13 22 . . . Heat Flow Errors 31 | . . . . . . . . . . . . 6 2 1 2 5 . . . . . . . . . 1 . . . . 2 . . 3 9 . . . Energy Discharges 16 | . . . . . . . . . . . . 1 . . 3 1 . . . . . 1 . . . 1 . . . . 3 1 . 3 2 . . . Parts Rejected 2 | . . . . . . . . . . . . . . . . . . . . . . . . . . . . . . . . . . . 2 . . . Data Loss (minor) 20 | . . . . . . . . . . . . 2 4 2 1 2 . . . . . . . . . . . . . . 1 . . 3 5 . . . Data Loss (major) 11 | . . . . . . . . . . . . 2 . . . 3 . . . . . . . . . . . . . . 1 . . 2 3 . . . Misfires 4 | . . . . . . . . . . . . . . . 1 1 . . . . . . . . . . . . . . 1 . . 1 . . . . Targeting Errors 41 | . . . . . . . . . . . . 8 1 1 5 6 . . . . . . . . 1 . . . . . 8 . . 5 6 . . . Weapon Failures 2 | . . . . . . . . . . . . 1 . . . . . . . . . . . . . . . . . . 1 . . . . . . . Overload Shots . | . . . . . . . . . . . . . . . . . . . . . . . . . . . . . . . . . . . . . . . Overflow Damage 6399 | . . 9 54 . 10 . 122 32 . 5 20 . . . . . 36 . . . 43 173 113 . 31 86 156 8 . . 179 . . 188 558 311 2299 1966 Projectiles 1531 | . . 9 11 . . . . . . . . . . . . . . . . . . . . . . . . 8 . . . . . . 45 . . 1458 Explosions 961 | . . . 43 . 10 . 49 32 . 5 20 . . . . . . . . . 5 14 . . . . . . . . . . . . . 2 348 433 Melee 3907 | . . . . . . . 73 . . . . . . . . . 36 . . . 38 159 113 . 31 86 156 . . . 179 . . 188 513 309 1951 75 Knockbacks 30 | . 5 1 . . . 1 . . . 1 . . . . . . 1 . 1 . 4 1 1 . 2 6 1 . . . 4 . 1 . . . . . Impact 18 | . . . . . . . . . . . . . . . . . 1 . 1 . 4 1 1 . 2 2 1 . . . 4 . 1 . . . . . Kinetic 11 | . 5 1 . . . 1 . . . 1 . . . . . . . . . . . . . . . 3 . . . . . . . . . . . . Secondary 1 | . . . . . . . . . . . . . . . . . . . . . . . . . . 1 . . . . . . . . . . . . Self-Inflicted Damage 1013 | . . . 50 . . . . 39 . 99 56 . . . 72 11 . . . 115 49 . . . . 93 . . . . 18 . . . . 26 81 304 Shots 49 | . . . 1 . . . . 2 . 3 1 . . . 1 6 . . . 5 2 . . . . 4 . . . . 1 . . . . 2 1 20 Rammed 45 | . 5 2 2 4 . . . . . . . . . . . . . . 3 . 10 . 2 . . 3 . . 3 1 1 . 4 1 4 . . . Targets Rammed 53 | . 5 6 5 4 . . . . . . . . . . . . . . 3 . 10 . 2 . . 3 . . 3 2 1 . 4 1 4 . . . Kicked . | . . . . . . . . . . . . . . . . . . . . . . . . . . . . . . . . . . . . . . . Crushed 8 | . . 4 3 . . . . . . . . . . . . . . . . . . . . . . . . . . 1 . . . . . . . . Highest Temperature 459 | . 12 207 310 136 136 . . 12 . 111 3 385 256 266 272 459 . . 54 198 239 104 6 72 27 228 192 197 324 256 266 . 116 194 209 59 282 188 Average Temperature 86 | . 5 77 111 69 93 . . 8 . 30 3 140 70 83 59 134 . . 25 67 100 37 6 34 12 98 89 105 103 88 84 . 60 72 86 13 89 73 Received Heat Transfer 3223 | . 51 81 78 . . . 99 . 9 403 35 . 28 77 79 117 . . . 108 264 36 . . 33 189 48 36 168 81 138 . 9 36 171 252 429 168 Effects 4 | . . . . . . . . . . . . 1 . . . 2 . . . . . . . . . . . . 1 . . . . . . . . . Energy Bleed 1 | . . . . . . . . . . . . . . . . . . . . . . . . . . . . . 1 . . . . . . . . . Short Circuit 2 | . . . . . . . . . . . . 1 . . . 1 . . . . . . . . . . . . . . . . . . . . . . Damage (minor) 1 | . . . . . . . . . . . . . . . . 1 . . . . . . . . . . . . . . . . . . . . . . Siege Activations 76 | . . . . . . . . . . . . . . . . . . . . 4 3 5 . . 1 5 1 2 3 7 6 . . 4 8 5 6 16 Total Turns 1640 | . . . . . . . . . . . . . . . . . . . . 75 159 49 . . 33 69 4 25 63 66 121 . . 41 282 79 276 298 Longest Duration 94 | . . . . . . . . . . . . . . . . . . . . 29 91 18 . . 33 24 4 15 32 18 36 . . 18 84 49 94 66 Robots Corrupted 33 | . . . . . . . . . . . . . 1 . 1 2 . . . . . . . . . 3 1 . . . . . . 3 3 7 4 8 Combat Hostiles 31 | . . . . . . . . . . . . . 1 . 1 1 . . . . . . . . . 2 1 . . . . . . 3 3 7 4 8 Parts Fried 83 | . . . . . . . 1 . . . . . 1 2 2 3 . . . . 1 . 3 . 3 6 1 . . . 3 . . 6 3 14 9 25 Impact Corruptions 33 | . . . . . . . 3 . . . . . . . . . 1 . . . 4 2 5 . 2 4 5 . 1 . 5 . 1 . . . . . Robots Melted 2 | . . . 1 . . . . . . . . . . . . . . . . . . . . . . . . . . . . . . . 1 . . . Combat Hostiles 2 | . . . 1 . . . . . . . . . . . . . . . . . . . . . . . . . . . . . . . 1 . . . Parts Melted 8 | . . 1 2 . . . . . . 1 . . . . . . . . . . . . . . . . . . . . . . . . 3 . 1 . Heat Transferred 11726 | 100 . 259 1147 . . . 148 37 . 481 . . . . . . . . . . . . . . . 150 . . 111 . . . . 148 1036 92 372 7645 Parts Sabotaged . | . . . . . . . . . . . . . . . . . . . . . . . . . . . . . . . . . . . . . . . Parts Stolen . | . . . . . . . . . . . . . . . . . . . . . . . . . . . . . . . . . . . . . . . Parts Stripped . | . . . . . . . . . . . . . . . . . . . . . . . . . . . . . . . . . . . . . . . Power Chain Reactions 9 | . . . . . . 1 . . . . . . . . . . . . . . . . . . . 2 . . . . . . . . . 1 2 3 Missiles Intercepted . | . . . . . . . . . . . . . . . . . . . . . . . . . . . . . . . . . . . . . . . Alert | -11 -10 -10 -9 -9 -9 -8 -8 -8 -7 -7 -6 -6 -6 -6 -6 -6 -5 -5 -5 -5 -5 -5 -4 -4 -4 -4 -4 -4 -4 -3 -3 -3 -2 -2 -2 -1 -1 -1 ------- Run | Scr Mat Min Mat Min Exi Min Mat Gar Fac Gar Fac Was Fac Gar Fac Gar Fac Was Fac Gar Fac Gar Fac Was Fac Ext Cet Arc Hub Res Arm Lab Res Qua Sec Acc Com Ac0 Peak Influence 903 | 60 189 88 445 173 . 16 251 329 177 617 442 148 177 99 287 395 244 34 240 685 533 735 421 82 81 334 444 377 306 198 903 . 113 202 318 364 644 . Initial 385 | . 39 73 17 173 . . . 156 172 123 323 148 . 49 51 95 207 . . 168 359 366 385 82 . 29 115 155 61 27 103 . . 63 87 140 . . Average 201 | 37 102 36 211 109 . 6 71 249 173 437 319 74 97 77 136 260 139 9 78 496 305 604 356 47 8 98 318 269 119 64 644 . 14 97 119 241 261 . Maximum Alert Level 3 | . . . 2 . . . 1 1 . 2 2 . . . 1 1 1 . 1 2 2 3 2 . . 1 2 1 1 . 3 . . 1 1 1 3 . Low Security (%) 54 | 100 100 100 55 100 . 100 85 31 100 6 15 100 100 100 77 30 51 100 96 5 8 . . 100 100 90 10 42 70 100 8 . 100 95 78 30 17 . Level 1 17 | . . . 33 . . . 14 68 . 18 57 . . . 22 69 48 . 3 24 87 5 62 . . 9 71 57 29 . 1 . . 4 21 69 . . Level 2 12 | . . . 10 . . . . . . 74 27 . . . . . . . . 70 4 84 37 . . . 17 . . . 37 . . . . . 16 . Level 3 15 | . . . . . . . . . . . . . . . . . . . . . . 9 . . . . . . . . 52 . . . . . 65 . Level 4 . | . . . . . . . . . . . . . . . . . . . . . . . . . . . . . . . . . . . . . . . Level 5 . | . . . . . . . . . . . . . . . . . . . . . . . . . . . . . . . . . . . . . . . High Security . | . . . . . . . . . . . . . . . . . . . . . . . . . . . . . . . . . . . . . . . Max Security . | . . . . . . . . . . . . . . . . . . . . . . . . . . . . . . . . . . . . . . . Squads Dispatched 65 | . 2 . 2 1 . . 1 . 1 . 2 . . . . . 3 . 3 . 6 . 1 . 2 3 . . 4 2 6 . 2 5 11 5 3 . Investigation 10 | . . . 2 1 . . . . . . . . . . . . 2 . . . 1 . 1 . . . . . 2 . . . . . . 1 . . Extermination 21 | . . . . . . . . . . . 1 . . . . . . . 1 . 1 . . . 1 . . . . 2 3 . 1 3 5 1 2 . Reinforcement 23 | . 2 . . . . . . . 1 . 1 . . . . . 1 . 1 . 2 . . . 1 3 . . 2 . 1 . 1 2 3 1 1 . Assault 3 | . . . . . . . . . . . . . . . . . . . . . . . . . . . . . . . 2 . . . 1 . . . Garrison 8 | . . . . . . . 1 . . . . . . . . . . . 1 . 2 . . . . . . . . . . . . . 2 2 . . Intercept . | . . . . . . . . . . . . . . . . . . . . . . . . . . . . . . . . . . . . . . . Construction Impeded 3 | . . . . . . . . . . . . . . . . . . . . . 1 . . . . 2 . . . . . . . . . . . . Haulers Reinforced 2 | . . . . . . . . . . . 1 . . . . . . . . . 1 . . . . . . . . . . . . . . . . . Alert ID Control Effect 29 | . . . . . . . . . . . . . . . . . . . . . . 2 . . . 2 . . . . 6 . . . 4 1 14 . Stealth | -11 -10 -10 -9 -9 -9 -8 -8 -8 -7 -7 -6 -6 -6 -6 -6 -6 -5 -5 -5 -5 -5 -5 -4 -4 -4 -4 -4 -4 -4 -3 -3 -3 -2 -2 -2 -1 -1 -1 --------- Run | Scr Mat Min Mat Min Exi Min Mat Gar Fac Gar Fac Was Fac Gar Fac Gar Fac Was Fac Gar Fac Gar Fac Was Fac Ext Cet Arc Hub Res Arm Lab Res Qua Sec Acc Com Ac0 Distress Signals 48 | . 2 . 1 . . . . . . . 2 . . . 1 . . . . . 3 . . . 1 5 1 . . 2 3 . . . 2 1 24 . Communications Jammed 112 | . . . . . . . . . . . . . . . . . . . . . . . . . . . . . . 24 66 . . 10 12 . . . Distress Signals 111 | . . . . . . . . . . . . . . . . . . . . . . . . . . . . . . 24 66 . . 10 11 . . . Times Spotted 658 | . 14 5 21 4 6 1 10 6 3 27 11 5 10 3 13 16 7 6 5 23 25 16 7 . 8 35 12 15 24 16 44 . 2 21 54 30 100 53 Peak Tracking Total 25 | . 5 2 4 2 7 1 6 5 2 7 3 1 4 3 3 4 2 2 2 5 9 4 2 . 4 5 5 1 8 5 7 . 2 6 6 4 25 5 Tactical Retreats 50 | . . 2 1 . . . 2 . . 1 . . 1 . 2 5 . . . 4 1 1 1 . . 1 . . 4 2 2 . . 1 1 5 11 2 Traps | -11 -10 -10 -9 -9 -9 -8 -8 -8 -7 -7 -6 -6 -6 -6 -6 -6 -5 -5 -5 -5 -5 -5 -4 -4 -4 -4 -4 -4 -4 -3 -3 -3 -2 -2 -2 -1 -1 -1 ------- Run | Scr Mat Min Mat Min Exi Min Mat Gar Fac Gar Fac Was Fac Gar Fac Gar Fac Was Fac Gar Fac Gar Fac Was Fac Ext Cet Arc Hub Res Arm Lab Res Qua Sec Acc Com Ac0 Traps Triggered 47 | . . . 1 . . . . . 1 5 3 . . 2 1 3 1 . 1 2 2 . 2 . . 2 . . . 1 1 . 1 1 1 3 13 . Indirectly . | . . . . . . . . . . . . . . . . . . . . . . . . . . . . . . . . . . . . . . . Trap Hack Attempts . | . . . . . . . . . . . . . . . . . . . . . . . . . . . . . . . . . . . . . . . Triggered . | . . . . . . . . . . . . . . . . . . . . . . . . . . . . . . . . . . . . . . . Disarmed . | . . . . . . . . . . . . . . . . . . . . . . . . . . . . . . . . . . . . . . . Reprogrammed . | . . . . . . . . . . . . . . . . . . . . . . . . . . . . . . . . . . . . . . . Reused . | . . . . . . . . . . . . . . . . . . . . . . . . . . . . . . . . . . . . . . . Traps Extracted . | . . . . . . . . . . . . . . . . . . . . . . . . . . . . . . . . . . . . . . . Installed 2 | . . . . . . 2 . . . . . . . . . . . . . . . . . . . . . . . . . . . . . . . . Triggered 1 | . . . . . . . . . . . 1 . . . . . . . . . . . . . . . . . . . . . . . . . . . Machines | -11 -10 -10 -9 -9 -9 -8 -8 -8 -7 -7 -6 -6 -6 -6 -6 -6 -5 -5 -5 -5 -5 -5 -4 -4 -4 -4 -4 -4 -4 -3 -3 -3 -2 -2 -2 -1 -1 -1 ---------- Run | Scr Mat Min Mat Min Exi Min Mat Gar Fac Gar Fac Was Fac Gar Fac Gar Fac Was Fac Gar Fac Gar Fac Was Fac Ext Cet Arc Hub Res Arm Lab Res Qua Sec Acc Com Ac0 Machines Disabled 91 | . . . 4 1 6 . 2 . . 2 8 . 9 . 2 2 . . . 2 . 2 . . 1 3 3 5 3 . 2 1 . 8 15 . 6 4 Max in Single Turn 9 | . . . 2 1 2 . 1 . . 1 6 . 9 . 2 1 . . . 1 . 1 . . 1 1 . 1 1 . 1 1 . 1 1 . 1 1 Garrison Access 9 | . . . . . . . . . . . . . . . . . . . 1 . . . 1 . 1 . . . . 1 . . 1 . 1 3 . . Garrison Relay 7 | . . . . . . . . . . 1 . . . . . 2 . . . 2 . 2 . . . . . . . . . . . . . . . . Phase Generator 1 | . . . . . . . . . . . . . . . . . . . . . . . . . . . . . . . . . . . . . 1 . Network Hub 2 | . . . . . . . . . . . . . . . . . . . . . . . . . . . . . 2 . . . . . . . . . Energy Cycler 1 | . . . . . . . . . . . . . . . . . . . . . . . . . . . . . . . 1 . . . . . . . Machines Sabotaged 1 | . . . . . . . . . . . . . . . . . . . . . . . . . . . . . 1 . . . . . . . . . Garrisons Compromised . | . . . . . . . . . . . . . . . . . . . . . . . . . . . . . . . . . . . . . . . Overloaded Fab Kills . | . . . . . . . . . . . . . . . . . . . . . . . . . . . . . . . . . . . . . . . Fab Network Shutdowns 1 | . . . . . . . . . . . . . . . . . . . . . . . . . . . . . . . 1 . . . . . . . Hacking | -11 -10 -10 -9 -9 -9 -8 -8 -8 -7 -7 -6 -6 -6 -6 -6 -6 -5 -5 -5 -5 -5 -5 -4 -4 -4 -4 -4 -4 -4 -3 -3 -3 -2 -2 -2 -1 -1 -1 --------- Run | Scr Mat Min Mat Min Exi Min Mat Gar Fac Gar Fac Was Fac Gar Fac Gar Fac Was Fac Gar Fac Gar Fac Was Fac Ext Cet Arc Hub Res Arm Lab Res Qua Sec Acc Com Ac0 Machines Accessed 111 | . 2 . 3 2 2 . 4 . 1 . 4 . 5 . 3 . 5 . 7 . 3 . 1 . 3 12 4 . 6 4 2 . 4 11 10 9 4 . Terminals 75 | . 2 . 3 . . . 2 . . . 1 . 1 . 2 . 3 . 5 . 1 . . . 1 12 4 . 6 2 1 . 2 10 9 5 3 . Fabricators 5 | . . . . . . . . . . . 1 . . . . . 1 . . . . . . . 1 . . . . 1 1 . . . . . . . Repair Stations 4 | . . . . . . . . . . . 1 . 2 . . . . . . . . . . . . . . . . . . . . . . . 1 . Recycling Units 2 | . . . . . . . . . . . . . . . . . 1 . . . 1 . . . . . . . . . . . . . . . . . Scanalyzers 6 | . . . . . . . 1 . . . 1 . 1 . . . . . . . . . . . . . . . . . . . 1 1 . 1 . . Garrison Access 15 | . . . . . . . 1 . 1 . . . 1 . 1 . . . 2 . 1 . 1 . 1 . . . . 1 . . 1 . 1 3 . . Total Hacks 424 | . 5 . 11 2 2 . 17 . 2 . 8 . 11 . 8 . 20 . 14 . 7 . 2 . 8 67 10 . 23 14 17 . 18 54 53 35 16 . Successful 231 | . 4 . 6 2 2 . 11 . 2 . 3 . 7 . 2 . 10 . 9 . 5 . 2 . 4 32 7 . 13 7 7 . 11 32 28 18 7 . Failed 190 | . 1 . 5 . . . 6 . . . 5 . 4 . 6 . 10 . 5 . 2 . . . 4 34 3 . 10 7 10 . 7 22 24 16 9 . Catastrophic 30 | . . . 2 . . . . . . . . . . . 1 . 1 . 2 . . . . . . 4 1 . 1 2 1 . . 4 2 7 2 . Database Lockouts 3 | . . . . . . . . . . . . . . . . . . . . . . . . . . 1 . . . . . . . . 1 1 . . Manual 189 | . 5 . 9 . 1 . 4 . . . . . 1 . 6 . 7 . 5 . 2 . . . . 42 9 . 10 2 7 . 3 22 29 17 8 . Terminals 312 | . 5 . 11 . . . 6 . . . 2 . 3 . 6 . 9 . 10 . 2 . . . 2 67 10 . 23 8 6 . 11 46 47 26 12 . Fabricators 24 | . . . . . . . . . . . 1 . . . . . 4 . . . . . . . 4 . . . . 4 11 . . . . . . . Repair Stations 10 | . . . . . . . . . . . 2 . 4 . . . . . . . . . . . . . . . . . . . . . . . 4 . Recycling Units 10 | . . . . . . . . . . . . . . . . . 7 . . . 3 . . . . . . . . . . . . . . . . . Scanalyzers 30 | . . . . . . . 9 . . . 3 . 2 . . . . . . . . . . . . . . . . . . . 5 8 . 3 . . Garrison Access 34 | . . . . . . . 2 . 2 . . . 2 . 2 . . . 4 . 2 . 2 . 2 . . . . 2 . . 2 . 6 6 . . Terminal Hacks 122 | . 3 . 4 2 2 . 3 . . . . . 2 . . . . . 4 . 1 . . . 1 26 5 . 8 3 3 . 6 21 18 8 2 . Record 1 | . . . . . 1 . . . . . . . . . . . . . . . . . . . . . . . . . . . . . . . . . Part Schematic 5 | . . . . . . . . . . . . . . . . . . . . . . . . . . . . . 1 . 1 . . 2 . 1 . . Robot Schematic 2 | . . . . . . . . . . . . . . . . . . . . . . . . . . . . . . . . . . 2 . . . . Robot Analysis 4 | . . . 1 . . . . . . . . . . . . . . . . . . . . . . . . . . . . . . 3 . . . . Prototype ID Bank 21 | . . . 1 . . . . . . . . . . . . . . . 1 . . . . . . 8 2 . . . . . 1 4 3 1 . . Open Door 19 | . . . . 2 . . . . . . . . . . . . . . . . . . . . . 7 1 . . . . . . . 5 3 1 . Level Access Points 2 | . . . . . . . . . . . . . . . . . . . . . . . . . . . . . 1 . . . . . 1 . . . Branch Access Points 5 | . 1 . . . . . . . . . . . 1 . . . . . 1 . . . . . . . . . . 1 . . 1 . . . . . Emergency Access Points 2 | . . . . . . . . . . . . . . . . . . . . . . . . . . . . . 1 . . . . 1 . . . . Machine Index 1 | . . . . . . . . . . . . . . . . . . . . . . . . . . . . . . . . . . . 1 . . . Terminal Index 2 | . . . . . . . . . . . . . . . . . . . . . . . . . . 1 . . . . . . . . 1 . . . Garrison Index 3 | . . . . . . . . . . . . . . . . . . . . . . . . . . . . . 1 1 . . . 1 . . . . Unreport Threat 10 | . . . . . . . . . . . . . . . . . . . . . . . . . . 2 1 . 1 . . . . . 2 3 1 . Locate Traps 6 | . . . . . . . . . . . . . . . . . . . 1 . . . . . . 1 . . . 1 1 . . 1 1 . . . Dispatch Records 4 | . . . 1 . . . . . . . . . . . . . . . . . . . . . . 2 1 . . . . . . . . . . . Patrol Status 3 | . . . 1 . . . . . . . . . . . . . . . . . . . . . . . . . 1 . . . . 1 . . . . Recall Extermination 3 | . . . . . . . . . . . . . . . . . . . . . . . . . . . . . . . . . . 1 2 . . . Recall Reinforcements 3 | . 1 . . . . . . . . . . . . . . . . . . . . . . . . 2 . . . . . . . . . . . . Recall Assault 1 | . . . . . . . . . . . . . . . . . . . . . . . . . . 1 . . . . . . . . . . . . Hauler Manifests 1 | . . . . . . . 1 . . . . . . . . . . . . . . . . . . . . . . . . . . . . . . . Registered Components 2 | . . . . . . . . . . . . . . . . . . . . . . . . . . . . . . . . . 1 1 . . . . Registered Prototypes 1 | . . . . . . . . . . . . . . . . . . . . . . . . . . . . . . . . . 1 . . . . . Zone Layout 20 | . 1 . . . . . 2 . . . . . 1 . . . . . 1 . 1 . . . 1 2 . . 2 . 1 . 2 4 2 . . . EX-Prototype ID Bank 1 | . . . . . 1 . . . . . . . . . . . . . . . . . . . . . . . . . . . . . . . . . Fabricator Hacks 6 | . . . . . . . . . . . . . . . . . 2 . . . . . . . 1 . . . . 1 2 . . . . . . . Load Schematic 3 | . . . . . . . . . . . . . . . . . 1 . . . . . . . . . . . . 1 1 . . . . . . . Build 3 | . . . . . . . . . . . . . . . . . 1 . . . . . . . 1 . . . . . 1 . . . . . . . Repair Station Hacks 6 | . . . . . . . . . . . 1 . 2 . . . . . . . . . . . . . . . . . . . . . . . 3 . Scan Component 5 | . . . . . . . . . . . 1 . 2 . . . . . . . . . . . . . . . . . . . . . . . 2 . Repair 1 | . . . . . . . . . . . . . . . . . . . . . . . . . . . . . . . . . . . . . 1 . Recycling Unit Hacks 6 | . . . . . . . . . . . . . . . . . 4 . . . 2 . . . . . . . . . . . . . . . . . Recycle Component 1 | . . . . . . . . . . . . . . . . . 1 . . . . . . . . . . . . . . . . . . . . . Process 2 | . . . . . . . . . . . . . . . . . 1 . . . 1 . . . . . . . . . . . . . . . . . Report Inventory 1 | . . . . . . . . . . . . . . . . . 1 . . . . . . . . . . . . . . . . . . . . . Retrieve Matter 2 | . . . . . . . . . . . . . . . . . 1 . . . 1 . . . . . . . . . . . . . . . . . Scanalyzer 16 | . . . . . . . 6 . . . 2 . 1 . . . . . . . . . . . . . . . . . . . 2 4 . 1 . . Insert Component 12 | . . . . . . . 3 . . . 1 . 1 . . . . . . . . . . . . . . . . . . . 2 4 . 1 . . Analyze 4 | . . . . . . . 3 . . . 1 . . . . . . . . . . . . . . . . . . . . . . . . . . . Garrison Access Hacks 28 | . . . . . . . 1 . 2 . . . 2 . 2 . . . 4 . 2 . 2 . 2 . . . . 2 . . 2 . 1 6 . . Unlock Access 6 | . . . . . . . 1 . 1 . . . 1 . 1 . . . 1 . 1 . . . . . . . . . . . . . . . . . Seal Access 8 | . . . . . . . . . . . . . . . . . . . 1 . . . 1 . 1 . . . . 1 . . 1 . . 3 . . Coupler Status 14 | . . . . . . . . . 1 . . . 1 . 1 . . . 2 . 1 . 1 . 1 . . . . 1 . . 1 . 1 3 . . Unauthorized Hacks 47 | . 1 . 2 . . . 1 . . . . . . . . . 4 . 1 . . . . . . 6 2 . 5 1 2 . 1 7 9 3 2 . Terminals 39 | . 1 . 2 . . . 1 . . . . . . . . . 2 . 1 . . . . . . 6 2 . 5 1 . . 1 6 6 3 2 . Track 12 | . . . 1 . . . . . . . . . . . . . 1 . . . . . . . . 2 1 . 1 . . . . 1 3 . 2 . Assimilate 2 | . . . . . . . . . . . . . . . . . . . . . . . . . . . . . 1 . . . . 1 . . . . Botnet 19 | . . . 1 . . . 1 . . . . . . . . . 1 . 1 . . . . . . 2 1 . 1 1 . . 1 4 2 3 . . Detonate 1 | . . . . . . . . . . . . . . . . . . . . . . . . . . 1 . . . . . . . . . . . . Disrupt 2 | . 1 . . . . . . . . . . . . . . . . . . . . . . . . . . . . . . . . . 1 . . . Operators 1 | . . . . . . . . . . . . . . . . . . . . . . . . . . 1 . . . . . . . . . . . . Sabotage 2 | . . . . . . . . . . . . . . . . . . . . . . . . . . . . . 2 . . . . . . . . . Fabricators 3 | . . . . . . . . . . . . . . . . . 1 . . . . . . . . . . . . . 2 . . . . . . . Report 1 | . . . . . . . . . . . . . . . . . . . . . . . . . . . . . . . 1 . . . . . . . Prioritize 1 | . . . . . . . . . . . . . . . . . . . . . . . . . . . . . . . 1 . . . . . . . Siphon 1 | . . . . . . . . . . . . . . . . . 1 . . . . . . . . . . . . . . . . . . . . . Repair Stations . | . . . . . . . . . . . . . . . . . . . . . . . . . . . . . . . . . . . . . . . Recycling Units 1 | . . . . . . . . . . . . . . . . . 1 . . . . . . . . . . . . . . . . . . . . . Recyclers 1 | . . . . . . . . . . . . . . . . . 1 . . . . . . . . . . . . . . . . . . . . . Scanalyzers 1 | . . . . . . . . . . . . . . . . . . . . . . . . . . . . . . . . . . 1 . . . . Researchers 1 | . . . . . . . . . . . . . . . . . . . . . . . . . . . . . . . . . . 1 . . . . Garrison Access 3 | . . . . . . . . . . . . . . . . . . . . . . . . . . . . . . . . . . . 3 . . . Reprogram 2 | . . . . . . . . . . . . . . . . . . . . . . . . . . . . . . . . . . . 2 . . . Intercept 1 | . . . . . . . . . . . . . . . . . . . . . . . . . . . . . . . . . . . 1 . . . Data Cores Recovered . | . . . . . . . . . . . . . . . . . . . . . . . . . . . . . . . . . . . . . . . Used . | . . . . . . . . . . . . . . . . . . . . . . . . . . . . . . . . . . . . . . . Hacking Detections 92 | . 2 . 3 . . . 4 . . . 4 . 5 . 3 . 5 . 7 . 3 . 1 . 2 11 4 . 4 4 2 . 3 8 8 5 4 . Full Trace Events 3 | . . . 1 . . . . . . . . . . . . . 2 . . . . . . . . . . . . . . . . . . . . . Feedback Events . | . . . . . . . . . . . . . . . . . . . . . . . . . . . . . . . . . . . . . . . Feedback Blocked . | . . . . . . . . . . . . . . . . . . . . . . . . . . . . . . . . . . . . . . . Robot Schematics Acquired 2 | . . . . . . . . . . . . . . . . . . . . . . . . . . . . . . . . . . 2 . . . . Robots Built . | . . . . . . . . . . . . . . . . . . . . . . . . . . . . . . . . . . . . . . . Matter . | . . . . . . . . . . . . . . . . . . . . . . . . . . . . . . . . . . . . . . . Time . | . . . . . . . . . . . . . . . . . . . . . . . . . . . . . . . . . . . . . . . Total Robot Build Rating . | . . . . . . . . . . . . . . . . . . . . . . . . . . . . . . . . . . . . . . . Part Schematics Acquired 7 | . . . . . . . 1 . . . 1 . . . . . . . . . . . . . . . . . 1 . 1 . . 2 . 1 . . Parts Built 4 | . . . . . . . . . . . . . . . . . 1 . . . . . . . 2 . . . . . 1 . . . . . . . Matter 754 | . . . . . . . . . . . . . . . . . 213 . . . . . . . 256 . . . . . 285 . . . . . . . Time 356 | . . . . . . . . . . . . . . . . . 152 . . . . . . . 128 . . . . . 76 . . . . . . . Total Part Build Rating 26 | . . . . . . . . . . . . . . . . . 5 . . . . . . . 16 . . . . . 5 . . . . . . . Parts Repaired 1 | . . . . . . . . . . . . . . . . . . . . . . . . . . . . . . . . . . . . . 1 . Time 13 | . . . . . . . . . . . . . . . . . . . . . . . . . . . . . . . . . . . . . 13 . Parts Recycled 1 | . . . . . . . . . . . . . . . . . 1 . . . . . . . . . . . . . . . . . . . . . Recycled Matter 124 | . . . . . . . . . . . . . . . . . 90 . . . 34 . . . . . . . . . . . . . . . . . Retrieved Matter 124 | . . . . . . . . . . . . . . . . . 90 . . . 34 . . . . . . . . . . . . . . . . . Retrieved Components . | . . . . . . . . . . . . . . . . . . . . . . . . . . . . . . . . . . . . . . . Parts Scanalyzed 3 | . . . . . . . 2 . . . 1 . . . . . . . . . . . . . . . . . . . . . . . . . . . Part Schematics Acquired 2 | . . . . . . . 1 . . . 1 . . . . . . . . . . . . . . . . . . . . . . . . . . . Parts Damaged . | . . . . . . . . . . . . . . . . . . . . . . . . . . . . . . . . . . . . . . . Bothacking | -11 -10 -10 -9 -9 -9 -8 -8 -8 -7 -7 -6 -6 -6 -6 -6 -6 -5 -5 -5 -5 -5 -5 -4 -4 -4 -4 -4 -4 -4 -3 -3 -3 -2 -2 -2 -1 -1 -1 ------------ Run | Scr Mat Min Mat Min Exi Min Mat Gar Fac Gar Fac Was Fac Gar Fac Gar Fac Was Fac Gar Fac Gar Fac Was Fac Ext Cet Arc Hub Res Arm Lab Res Qua Sec Acc Com Ac0 Used RIF Installer 6 | . . . . . . . . 1 . 1 . . . 1 . 1 . . . 1 . 1 . . . . . . . . . . . . . . . . Robot Detection 1 | . . . . . . . . . . 1 . . . . . . . . . . . . . . . . . . . . . . . . . . . . Alert ID Control 1 | . . . . . . . . . . . . . . . . . . . . 1 . . . . . . . . . . . . . . . . . . Autooverride 3 | . . . . . . . . . . . . . . 1 . 1 . . . . . 1 . . . . . . . . . . . . . . . . Robots Hacked 81 | . . . . . . . . . . . 3 2 . . . . 3 . . . . 3 4 . 4 5 1 . 3 3 14 . . 3 18 6 9 . Non-combat 14 | . . . . . . . . . . . 3 . . . . . 3 . . . . . 2 . . . . . 1 3 . . . . 1 1 . . Combat 67 | . . . . . . . . . . . . 2 . . . . . . . . . 3 2 . 4 5 1 . 2 . 14 . . 3 17 5 9 . Autooverrided 35 | . . . . . . . . . . . . . . . . . . . . . . 3 . . . 3 1 . 2 . 10 . . 1 4 4 7 . Robot Hacks Applied 52 | . . . . . . . . . . . 3 2 . . . . 3 . . . . . 4 . 4 2 . . 2 3 5 . . 2 17 2 3 . generate_echo 1 | . . . . . . . . . . . . . . . . . . . . . . . . . . . . . . 1 . . . . . . . . find_chute 3 | . . . . . . . . . . . 1 . . . . . 1 . . . . . 1 . . . . . . . . . . . . . . . drop_inventory 3 | . . . . . . . . . . . 1 . . . . . . . . . . . 1 . . . . . . 1 . . . . . . . . purge_threat 2 | . . . . . . . . . . . . . . . . . . . . . . . . . . . . . 2 . . . . . . . . . block_reporting 2 | . . . . . . . . . . . . . . . . . . . . . . . . . . . . . . . . . . . 1 1 . . map_route 3 | . . . . . . . . . . . 1 . . . . . 1 . . . . . . . . . . . . 1 . . . . . . . . locate_prototypes 3 | . . . . . . . . . . . . . . . . . . . . . . . . . . . . . . . . . . 1 2 . . . ignore_targets 2 | . . . . . . . . . . . . 2 . . . . . . . . . . . . . . . . . . . . . . . . . . disrupt_area 1 | . . . . . . . . . . . . . . . . . . . . . . . . . . . . . . . . . . . 1 . . . wipe_record 2 | . . . . . . . . . . . . . . . . . . . . . . . . . . 1 . . . . . . . . 1 . . . reboot_system 1 | . . . . . . . . . . . . . . . . . . . . . . . . . . . . . . . 1 . . . . . . . go_dormant 3 | . . . . . . . . . . . . . . . . . . . . . . . 1 . . . . . . . . . . . 1 1 . . overwrite_iff 20 | . . . . . . . . . . . . . . . . . . . . . . . 1 . 2 1 . . . . 3 . . 1 11 . 1 . formatsys_high 6 | . . . . . . . . . . . . . . . . . 1 . . . . . . . 2 . . . . . 1 . . . . . 2 . Relay Couplers Released 41 | . . . . . . . . . . 4 . . . . . 9 . . . 10 . 10 2 . . . . . . . . . 1 . 2 3 . . Machine Destruction 41 | . . . . . . . . . . 4 . . . . . 9 . . . 10 . 10 2 . . . . . . . . . 1 . 2 3 . . Attached 28 | . . . . . . . . . . . 1 . . . 1 . 1 . . 2 . 4 3 . 2 2 . . 2 . 2 . . 1 2 4 1 . Robots Rewired 20 | . . . . . . . . . . . . . . . . . . . . . . . . . . 8 . . . . 12 . . . . . . . Allies Hacked 6 | . . . . . . . . . . . . . . . . . . . . . . . . . . . . . . . 6 . . . . . . . Hacks Repelled . | . . . . . . . . . . . . . . . . . . . . . . . . . . . . . . . . . . . . . . . Allies | -11 -10 -10 -9 -9 -9 -8 -8 -8 -7 -7 -6 -6 -6 -6 -6 -6 -5 -5 -5 -5 -5 -5 -4 -4 -4 -4 -4 -4 -4 -3 -3 -3 -2 -2 -2 -1 -1 -1 -------- Run | Scr Mat Min Mat Min Exi Min Mat Gar Fac Gar Fac Was Fac Gar Fac Gar Fac Was Fac Gar Fac Gar Fac Was Fac Ext Cet Arc Hub Res Arm Lab Res Qua Sec Acc Com Ac0 Total Allies 115 | . . . . 1 . . . . . . . . . . . . 1 19 3 . . 3 1 . 4 23 1 . 3 . 25 . . 2 16 4 9 . Largest Group 20 | . . . . 1 . . . . . . . . . . . . 1 20 20 6 . 1 1 . 1 11 5 1 2 . 6 . . 1 2 2 2 . Highest-Rated Group 722 | . . . . 31 . . . . . . . . . . . . 26 722 689 192 . 12 56 . 58 448 347 49 73 . 303 . . 58 116 138 291 . Highest-Rated Ally 222 | . . . . 31 . . . . . . . . . . . . 26 50 46 46 . 12 56 . 58 156 156 49 47 . 60 . . 58 58 69 222 . Total Orders 33 | . . . . . . . . . . . . . . . 2 2 2 3 . . . . . . 3 . . . 1 4 3 . 2 . . . 10 1 STAY 12 | . . . . . . . . . . . . . . . . . . 2 . . . . . . 2 . . . 1 . 2 . . . . . 5 . FOLLOW 9 | . . . . . . . . . . . . . . . . 1 . 1 . . . . . . 1 . . . . . 1 . . . . . 5 . EXPLORE 12 | . . . . . . . . . . . . . . . 2 1 2 . . . . . . . . . . . . 4 . . 2 . . . . 1 Ally Attacks 455 | . . . . . . 8 . . . . . . . . . 7 . 5 51 16 . 8 3 . 18 87 60 3 3 . 81 . . 7 37 17 44 . Total Damage 14214 | . . . . . . . . . . . . . . . . . . 304 1210 311 . 92 160 . 417 2923 1755 60 83 . 2467 . . 175 1088 597 2572 . Kills 72 | . . . . . . . . . . . . . . . . . . 1 10 . . 2 . . 1 17 12 1 . . 9 . . . 4 1 14 . Allies Corrupted 8 | . . . . . . . . . . . . . . . . . . 1 . . . . . . . 1 1 . . . 5 . . . . . . . Allies Melted . | . . . . . . . . . . . . . . . . . . . . . . . . . . . . . . . . . . . . . . . Intel | -11 -10 -10 -9 -9 -9 -8 -8 -8 -7 -7 -6 -6 -6 -6 -6 -6 -5 -5 -5 -5 -5 -5 -4 -4 -4 -4 -4 -4 -4 -3 -3 -3 -2 -2 -2 -1 -1 -1 ------- Run | Scr Mat Min Mat Min Exi Min Mat Gar Fac Gar Fac Was Fac Gar Fac Gar Fac Was Fac Gar Fac Gar Fac Was Fac Ext Cet Arc Hub Res Arm Lab Res Qua Sec Acc Com Ac0 Robot Analysis Total 4 | . . . 1 . . . . . . . . . . . . . . . . . . . . . . . . . . . . . . 3 . . . . Derelict Logs Recovered 2 | . . 1 . 1 . . . . . . . . . . . . . . . . . . . . . . . . . . . . . . . . . . Drone Launches 28 | . . . . . . 9 . . . . . . . . 3 7 2 . . . . . . . . . . . . 4 . . 2 . . . . 1 Drone Recoveries 3 | . . . . . . . . . . . . . . . 1 . . . . . . . . . . . . . . 1 . . 1 . . . . . Exploration | -11 -10 -10 -9 -9 -9 -8 -8 -8 -7 -7 -6 -6 -6 -6 -6 -6 -5 -5 -5 -5 -5 -5 -4 -4 -4 -4 -4 -4 -4 -3 -3 -3 -2 -2 -2 -1 -1 -1 ------------- Run | Scr Mat Min Mat Min Exi Min Mat Gar Fac Gar Fac Was Fac Gar Fac Gar Fac Was Fac Gar Fac Gar Fac Was Fac Ext Cet Arc Hub Res Arm Lab Res Qua Sec Acc Com Ac0 Turns Passed 38759 | 334 282 1148 697 709 1178 464 249 172 130 1163 1056 790 481 175 655 831 819 407 781 810 971 1017 529 684 891 2316 315 661 507 1141 1270 771 382 2049 2637 1303 7096 888 Spaces Moved 18604 | 124 125 649 326 373 457 282 149 119 99 485 755 355 370 108 385 532 630 205 494 345 345 454 273 371 426 1035 150 149 223 552 491 345 215 841 1021 596 3469 281 Core 156 | 7 . . . . . 33 . . . . . . . . . . . . . . . . . . . . . 16 . . . . . . . . . 100 Treads 14252 | 117 125 649 326 373 457 78 . . . 440 . . . . . . . . 307 345 345 454 213 345 426 1035 150 133 223 552 491 345 215 841 1021 596 3469 181 Legs 106 | . . . . . . . . . . 20 . . . . . . . . . . . . 60 26 . . . . . . . . . . . . . . Wheels 4090 | . . . . . . 171 149 119 99 25 755 355 370 108 385 532 630 205 187 . . . . . . . . . . . . . . . . . . . Hover . | . . . . . . . . . . . . . . . . . . . . . . . . . . . . . . . . . . . . . . . Flight . | . . . . . . . . . . . . . . . . . . . . . . . . . . . . . . . . . . . . . . . Fastest Speed 50 | 50 160 160 160 160 160 50 120 130 113 113 116 116 116 116 116 110 115 115 130 160 160 160 160 160 160 160 160 160 160 160 165 170 157 157 140 140 147 50 Average Speed 157 | 153 160 160 160 171 195 145 122 130 113 179 116 124 116 127 126 115 115 127 148 172 179 160 173 171 168 178 160 357 160 162 167 170 157 163 148 147 172 110 Slowest Speed 2000 | 160 160 180 180 180 200 240 130 130 113 270 135 126 126 135 145 140 115 130 180 180 180 160 240 240 210 190 180 2000 180 165 170 170 170 177 177 162 200 152 Overloaded Moves . | . . . . . . . . . . . . . . . . . . . . . . . . . . . . . . . . . . . . . . . Propulsion Burnouts . | . . . . . . . . . . . . . . . . . . . . . . . . . . . . . . . . . . . . . . . Robots Hopped . | . . . . . . . . . . . . . . . . . . . . . . . . . . . . . . . . . . . . . . . Cave-ins Triggered . | . . . . . . . . . . . . . . . . . . . . . . . . . . . . . . . . . . . . . . . Teleports 5 | . . . . . . . . . . . . . . . . . . . . . . . . . . . . . . . . . . 1 2 . 1 1 Exploration Rate (%) 46 | 6 32 100 36 63 69 42 20 37 3 65 18 89 12 34 21 72 18 86 16 64 12 67 13 92 17 84 69 80 40 25 40 99 13 77 63 22 86 29 Regions Visited 38 Branch Regions 14 Pre-discovered Areas 1 | . . . . . 1 . . . . . . . . . . . . . . . . . . . . . . . . . . . . . . . . . Known Exits Taken 20 | . 1 . 1 . . 1 1 . 1 . . . 1 . 1 . . . 1 . 1 . . . 1 1 1 1 1 1 1 1 1 1 1 . . . Unknown Exits Taken 6 | 1 . 1 . 1 1 . . . . . . . . . . . . . . . . . . . . . . . . . . . . . . 1 1 . Scrap Searched 3 | . . 1 . 1 . 1 . . . . . . . . . . . . . . . . . . . . . . . . . . . . . . . . Spaces Dug 306 | . 3 . 29 . 26 . . . . . 4 . . . 1 . 3 3 . . 9 1 3 . 4 . . . . 2 4 . 1 20 14 24 18 137 Terrain Destroyed 1641 | . 3 . 65 1 72 6 64 26 . 44 71 . 27 . 27 27 3 3 . 84 69 6 3 . 11 39 . 18 6 11 62 . 2 33 44 30 142 642 Melee 83 | . . . . . . . . . . . 4 . . . 1 . 3 3 . . 6 1 3 . 4 . . . . 2 4 . . 16 9 17 10 . Projectile 211 | . 3 . 3 1 3 2 4 . . 1 . . . . . . . . . 2 21 4 . . 7 9 . 18 6 9 31 . 2 17 13 13 26 16 AOE 1347 | . . . 62 . 69 4 60 26 . 43 67 . 27 . 26 27 . . . 82 42 1 . . . 30 . . . . 27 . . . 22 . 106 626 Terrain Rammed . | . . . . . . . . . . . . . . . . . . . . . . . . . . . . . . . . . . . . . . . Walls Destroyed . | . . . . . . . . . . . . . . . . . . . . . . . . . . . . . . . . . . . . . . . Machines Disabled . | . . . . . . . . . . . . . . . . . . . . . . . . . . . . . . . . . . . . . . . Actions | -11 -10 -10 -9 -9 -9 -8 -8 -8 -7 -7 -6 -6 -6 -6 -6 -6 -5 -5 -5 -5 -5 -5 -4 -4 -4 -4 -4 -4 -4 -3 -3 -3 -2 -2 -2 -1 -1 -1 --------- Run | Scr Mat Min Mat Min Exi Min Mat Gar Fac Gar Fac Was Fac Gar Fac Gar Fac Was Fac Gar Fac Gar Fac Was Fac Ext Cet Arc Hub Res Arm Lab Res Qua Sec Acc Com Ac0 Total 25294 | 229 173 723 428 425 666 330 190 126 113 666 888 621 405 138 498 694 715 269 534 487 564 694 317 406 567 1390 200 209 316 710 776 522 247 1371 1883 856 4232 716 Wait 3280 | 69 10 42 17 18 140 6 . . . 60 27 213 6 5 32 87 56 12 16 78 135 182 3 . 87 181 15 17 36 76 110 143 . 371 556 121 204 149 Move 18574 | 123 124 648 325 372 456 281 149 118 99 484 755 354 370 107 385 531 630 204 494 344 345 453 273 370 425 1034 149 148 222 551 490 344 214 840 1020 595 3468 280 Hop . | . . . . . . . . . . . . . . . . . . . . . . . . . . . . . . . . . . . . . . . Pick Up 331 | 4 6 3 9 12 24 16 9 . 1 17 16 . 4 . 8 3 4 . 2 10 1 11 5 1 3 11 1 4 2 9 14 8 6 12 20 8 59 8 Fast Attach 230 | 7 2 1 5 1 1 5 . . . 10 6 3 2 1 9 5 3 3 5 4 . 2 3 6 3 16 6 2 8 4 6 2 2 9 17 4 59 8 Attach 235 | . 2 . 4 4 2 8 6 1 2 9 6 . 3 . 4 1 1 . 1 . 1 5 5 5 1 9 1 2 2 5 5 4 3 10 29 7 51 36 Detach 129 | . 1 . . . . 3 3 . . 2 . 2 . . 3 . 2 . . 2 . 2 2 5 1 5 . . 2 1 5 . . 11 18 1 42 16 Swap 307 | 1 . 5 18 2 2 1 6 . 2 8 20 6 5 3 8 7 4 7 4 10 17 5 4 3 5 12 1 2 9 20 40 1 5 19 11 12 20 2 Drop 375 | . 6 3 15 6 10 3 1 . . 8 23 3 6 1 18 9 5 5 7 4 1 8 5 9 6 15 6 6 8 7 14 11 6 12 18 7 92 11 Fire 1207 | 25 17 15 30 6 31 5 13 7 1 62 18 40 9 5 30 26 3 33 1 31 42 23 7 7 30 50 9 28 22 31 81 . 2 35 115 47 135 135 Melee 444 | . . . . . . . 3 . . . 9 . . . 1 . 7 5 1 2 12 3 8 . 6 10 12 . 2 4 8 9 5 51 74 54 87 71 Ram . | . . . . . . . . . . . . . . . . . . . . . . . . . . . . . . . . . . . . . . . Kick . | . . . . . . . . . . . . . . . . . . . . . . . . . . . . . . . . . . . . . . . Crush 53 | . 5 6 5 4 . . . . . . . . . . . . . . 3 . 10 . 2 . . 3 . . 3 2 1 . 4 1 4 . . . Escape Stasis 81 | . . . . . . . . . 8 6 8 . . 16 . 24 . . . 2 . . . . . 2 . . . . . . . . . . 15 . Rewire 46 | . . . . . . . . . . . . . . . . 1 . . . . . . . . . 42 . . . . 2 . . . 1 . . . Trap 2 | . . . . . . 2 . . . . . . . . . . . . . . . . . . . . . . . . . . . . . . . . Miscellaneous . | . . . . . . . . . . . . . . . . . . . . . . . . . . . . . . . . . . . . . . . Route ------- -11/Scrapyard -10/Materials -10/Mines (discovered 2 exits: *Mat x2) -9/Materials (discovered 3 exits: *Mat x2 / *Min) -9/Mines (discovered 3 exits: *Mat x2 / *Exi) -9/Exiles -8/Mines -8/Materials -8/Garrison -7/Factory -7/Garrison (discovered 3 exits: *Fac x3) -6/Factory -6/Waste -6/Factory (discovered 4 exits: *Fac / Low x2 / Gar) -6/Garrison -6/Factory (discovered 4 exits: *Fac / *Low x2 / Gar) -6/Garrison (discovered 3 exits: *Fac x3) -5/Factory -5/Waste -5/Factory (discovered 3 exits: Upp x2 / Gar) -5/Garrison -5/Factory -5/Garrison (discovered 3 exits: *Fac x3) -4/Factory -4/Waste -4/Factory (discovered 2 exits: *Res / *Ext) -4/Extension (discovered 2 exits: *Res / *Cet) -4/Cetus -4/Archives (discovered 3 exits: *Res / *Hub x2) -4/Hub_04(d) (discovered 4 exits: *Res x4) -3/Research (discovered 3 exits: *Arm / Tes x2) -3/Armory -3/Lab -2/Research (discovered 3 exits: *Acc / *Qua x2) -2/Quarantine -2/Section 7 -1/Access -1/Command (discovered 3 exits: [*Sur x2] / [*Ac0]) -1/Access_0 Near Former Tau Ceti IV History --------- Turn | Location | Event 4 | -11/Scrapyard | Discovered new exit (range 16) 335 | -11/Scrapyard | Entered Materials 371 | -10/Materials | Build established: Mutant 493 | -10/Materials | Identified exit to Mines 617 | -10/Materials | Entered Mines 798 | -10/Mines | Discovered new exit (range 9) 856 | -10/Mines | Received a Rocket Launcher from a helpful Derelict 890 | -10/Mines | Assembled infested the area 895 | -10/Mines | Assisted by a Guerilla fighting off Assembled 1525 | -10/Mines | Learned location of 2 exits from Materials 1560 | -10/Mines | Found a damaged Exp. Sensor Array with a note attached 1563 | -10/Mines | Found Prototype Device 1577 | -10/Mines | Discovered new exit (range 5) 1765 | -10/Mines | Entered Materials 1765 | -9/Materials | Evolved 2 slots: Weapon x2 1766 | -9/Materials | Identified exit to Materials 1766 | -9/Materials | Identified exit to Mines 2027 | -9/Materials | Identified Exp. Sensor Array 2202 | -9/Materials | Build established: Gunner 2249 | -9/Materials | Discovered exit to Materials (range 13) 2462 | -9/Materials | Entered Mines 2465 | -9/Mines | Received a Mining Laser from a helpful Derelict 2581 | -9/Mines | Discovered exit to Materials (range 5) 2593 | -9/Mines | Found the Drone Emporium 2606 | -9/Mines | Found Prototype Device 2714 | -9/Mines | Found a hidden stash of uninstalled traps 2759 | -9/Mines | Met a Derelict shopkeep closing up shop 3005 | -9/Mines | Discovered exit to Materials (range 12) 3039 | -9/Mines | Learned Materials garrison access intel 3161 | -9/Mines | Deemed a non-threat by the Exiles lab entrance 3162 | -9/Mines | Discovered new exit (range 5) 3171 | -9/Mines | Entered Exiles 3198 | -9/Exiles | Discovered new exit (range 15) 3216 | -9/Exiles | Met 8R-AWN 3242 | -9/Exiles | Met EX-HEX 3318 | -9/Exiles | Identified Bomb Drone Bay 3420 | -9/Exiles | Met EX-DEC 3454 | -9/Exiles | Learned location of Zion (-6) 3610 | -9/Exiles | Build established: Hauler-Gunner 3634 | -9/Exiles | Met EX-BIN 3662 | -9/Exiles | Aligned with FarCom system 3664 | -9/Exiles | Given EX-Vault access code 3718 | -9/Exiles | Opened EX-Vault 3734 | -9/Exiles | Found YOLO Cannon 3744 | -9/Exiles | Found Supersonic Drone Bay 3789 | -9/Exiles | Warned to stay clear of 0b10 Research branches 3949 | -9/Exiles | Attacked by the Exiles 4005 | -9/Exiles | Destroyed 8R-AWN 4046 | -9/Exiles | Found Prototype Processor 4345 | -9/Exiles | Build established: Hauler-Mutant 4349 | -9/Exiles | Stole two prototypes: YOLO Cannon, Supersonic Drone Bay 4349 | -9/Exiles | Entered Mines 4365 | -8/Mines | P1-3CE came to Exiles' defense 4396 | -8/Mines | Core integrity fell below 50% 4398 | -8/Mines | Released all parts (5) 4429 | -8/Mines | Lost 5 parts (2n1u2w) 4700 | -8/Mines | Discovered exit to Materials (range 9) 4813 | -8/Mines | Entered Materials 4813 | -8/Materials | Evolved 2 slots: Utility x2 4814 | -8/Materials | Loaded intel: 1 garrison access location 4831 | -8/Materials | Identified Exp. Targeting Computer 5020 | -8/Materials | Garrison activated, responded to threat 5062 | -8/Materials | Identified exit to Garrison 5062 | -8/Materials | Entered Garrison 5110 | -8/Garrison | Triggered checkpoint 5198 | -8/Garrison | Discovered new exit (range 15) 5229 | -8/Garrison | Installed Relay Interface Framework 5234 | -8/Garrison | Entered Factory 5234 | -7/Factory | Evolved 2 slots: Propulsion x1, Utility x1 5364 | -7/Factory | Identified exit to Garrison 5364 | -7/Factory | Entered Garrison 5449 | -7/Garrison | Triggered checkpoint 5453 | -7/Garrison | Lost 3 parts (1n2w) 5474 | -7/Garrison | Destroyed 8 combat bots 5633 | -7/Garrison | Triggered checkpoint 5705 | -7/Garrison | Destroyed 8 combat bots 5708 | -7/Garrison | Lost 7 parts (1p2n1u3w) 5775 | -7/Garrison | Discovered new exit (range 13) 5913 | -7/Garrison | Discovered new exit (range 8) 6000 | -7/Garrison | Build established: Scavenger-Tank 6092 | -7/Garrison | Triggered checkpoint 6106 | -7/Garrison | Discovered new exit (range 14) 6153 | -7/Garrison | Expanded RIF knowledge: Robot Detection 6446 | -7/Garrison | Triggered checkpoint 6446 | -7/Garrison | Garrison Relay disabled 6527 | -7/Garrison | Entered Factory 6527 | -6/Factory | Evolved 2 slots: Utility x2 6982 | -6/Factory | Discovered new exit (range 6) 7141 | -6/Factory | Found Faulty Exp. Signal Interpreter 7422 | -6/Factory | Build established: Bothacker-Tank 7583 | -6/Factory | Sucked down chute 7583 | -6/Factory | Entered Waste 7598 | -6/Waste | EMP discharged 7611 | -6/Waste | Spotted C-40 Crusher 7628 | -6/Waste | Destroyed C-40 Crusher 7635 | -6/Waste | Spotted C-40 Crusher 7673 | -6/Waste | Destroyed C-40 Crusher 7684 | -6/Waste | Spotted C-40 Crusher 7698 | -6/Waste | EMP discharged 7698 | -6/Waste | System corruption reached 10% 7718 | -6/Waste | Destroyed C-40 Crusher 7722 | -6/Waste | Spotted C-40 Crusher 7761 | -6/Waste | Destroyed C-40 Crusher 7770 | -6/Waste | Found Damper Plating 7798 | -6/Waste | EMP discharged 7898 | -6/Waste | EMP discharged 7998 | -6/Waste | EMP discharged 8076 | -6/Waste | Build established: Scavenger-Tank 8098 | -6/Waste | EMP discharged 8118 | -6/Waste | Spotted C-40 Crusher 8180 | -6/Waste | Spotted C-40 Crusher 8198 | -6/Waste | EMP discharged 8203 | -6/Waste | Destroyed C-40 Crusher 8214 | -6/Waste | Found Damper Plating 8298 | -6/Waste | EMP discharged 8356 | -6/Waste | Discovered new exit (range 13) 8373 | -6/Waste | Entered Factory 8394 | -6/Factory | Identified exit to Lower Caves 8575 | -6/Factory | Discovered new exit (range 9) 8697 | -6/Factory | Build established: Hauler-Tank 8854 | -6/Factory | Identified exit to Garrison 8854 | -6/Factory | Entered Garrison 8920 | -6/Garrison | Triggered checkpoint 8988 | -6/Garrison | Discovered new exit (range 12) 9015 | -6/Garrison | Expanded RIF knowledge: Autooverride 9029 | -6/Garrison | Entered Factory 9162 | -6/Factory | Discovered new exit (range 9) 9173 | -6/Factory | Discovered exit to Lower Caves (range 45) 9345 | -6/Factory | Discovered exit to Lower Caves (range 15) 9409 | -6/Factory | Found Prototype Launcher 9409 | -6/Factory | Identified Scatter Rocket Array 9679 | -6/Factory | Found Powered Armor 9684 | -6/Factory | Identified exit to Garrison 9684 | -6/Factory | Entered Garrison 9710 | -6/Garrison | Triggered checkpoint 9840 | -6/Garrison | Garrison Relay disabled 9872 | -6/Garrison | Spotted B-75 Beast 9886 | -6/Garrison | Triggered checkpoint 9886 | -6/Garrison | Triggered checkpoint 10033 | -6/Garrison | Build established: Scavenger-Mutant 10066 | -6/Garrison | Discovered new exit (range 8) 10191 | -6/Garrison | Discovered new exit (range 15) 10276 | -6/Garrison | Triggered checkpoint 10311 | -6/Garrison | Discovered new exit (range 12) 10334 | -6/Garrison | Expanded RIF knowledge: Autooverride 10388 | -6/Garrison | Triggered checkpoint 10436 | -6/Garrison | Garrison Relay disabled 10515 | -6/Garrison | Entered Factory 10515 | -5/Factory | Evolved 2 slots: Propulsion x1, Utility x1 10886 | -5/Factory | Fabricated Exp. Signal Interpreter (x1) 11190 | -5/Factory | Found Hvy. Reactive Plating 11334 | -5/Factory | Sucked down chute 11334 | -5/Factory | Entered Waste 11349 | -5/Waste | EMP discharged 11360 | -5/Waste | 1 allies followed down the chute 11363 | -5/Waste | Spotted C-40 Crusher 11371 | -5/Waste | Destroyed C-40 Crusher 11374 | -5/Waste | Spotted C-40 Crusher 11390 | -5/Waste | Destroyed C-40 Crusher 11396 | -5/Waste | Spotted C-40 Crusher 11411 | -5/Waste | Destroyed C-40 Crusher 11416 | -5/Waste | Found Damper Plating 11419 | -5/Waste | Spotted C-40 Crusher 11443 | -5/Waste | Spotted C-40 Crusher 11449 | -5/Waste | EMP discharged 11452 | -5/Waste | Destroyed C-40 Crusher 11465 | -5/Waste | Destroyed C-40 Crusher 11546 | -5/Waste | Spotted C-40 Crusher 11549 | -5/Waste | EMP discharged 11619 | -5/Waste | Met Warlord forces unprepared to attack 11635 | -5/Waste | Build established: Scavenger-Skirmisher 11649 | -5/Waste | EMP discharged 11707 | -5/Waste | Discovered new exit (range 11) 11721 | -5/Waste | Identified exit to Factory 11741 | -5/Waste | Entered Factory 11741 | -5/Factory | Accompanied by 18 allies 11796 | -5/Factory | Allied Derelicts emerged from ambush trap array 11840 | -5/Factory | Garrison activated, responded to threat 11915 | -5/Factory | Identified exit to Upper Caves 12522 | -5/Factory | Identified exit to Garrison 12522 | -5/Factory | Entered Garrison 12522 | -5/Garrison | Accompanied by 6 allies 12594 | -5/Garrison | Triggered checkpoint 12640 | -5/Garrison | Triggered checkpoint 12786 | -5/Garrison | Triggered checkpoint 12793 | -5/Garrison | Garrison Relay disabled 13064 | -5/Garrison | Discovered new exit (range 10) 13080 | -5/Garrison | Identified exit to Factory 13093 | -5/Garrison | Expanded RIF knowledge: Alert ID Control 13144 | -5/Garrison | Triggered checkpoint 13204 | -5/Garrison | Garrison Relay disabled 13332 | -5/Garrison | Entered Factory 13774 | -5/Factory | Build established: Botlord-Skirmisher 14147 | -5/Factory | Garrison activated, responded to threat 14289 | -5/Factory | Destroyed 8 combat bots 14303 | -5/Factory | Identified exit to Garrison 14303 | -5/Factory | Entered Garrison 14356 | -5/Garrison | Triggered checkpoint 14388 | -5/Garrison | Garrison Relay disabled 14418 | -5/Garrison | Build established: Botlord-Gunner 14574 | -5/Garrison | Triggered checkpoint 14590 | -5/Garrison | Triggered checkpoint 14640 | -5/Garrison | Discovered new exit (range 15) 14716 | -5/Garrison | Triggered checkpoint 14766 | -5/Garrison | Garrison Relay disabled 15108 | -5/Garrison | Build established: Botlord-Mutant 15110 | -5/Garrison | Discovered new exit (range 12) 15218 | -5/Garrison | Triggered checkpoint 15285 | -5/Garrison | Discovered new exit (range 10) 15302 | -5/Garrison | Identified exit to Factory 15314 | -5/Garrison | Expanded RIF knowledge: Autooverride 15320 | -5/Garrison | Entered Factory 15320 | -4/Factory | Evolved 2 slots: Utility x2 15849 | -4/Factory | Sucked down chute 15849 | -4/Factory | Entered Waste 15849 | -4/Waste | The area was eerily silent 16078 | -4/Waste | Found Prototype Device 16078 | -4/Waste | Identified System Purifier 16166 | -4/Waste | Discovered new exit (range 13) 16436 | -4/Waste | Found Damper Plating 16530 | -4/Waste | Identified exit to Factory 16533 | -4/Waste | Entered Factory 16671 | -4/Factory | Discovered new exit (range 5) 16679 | -4/Factory | Identified exit to Research 17128 | -4/Factory | Fabricated Arm. Heavy Treads (x2) 17376 | -4/Factory | Discovered new exit (range 16) 17422 | -4/Factory | Identified exit to Extension 17424 | -4/Factory | Entered Extension 17683 | -4/Extension | Disrupted transfer network 17775 | -4/Extension | Rescued a captive Derelict 17883 | -4/Extension | Rescued a captive Derelict 18092 | -4/Extension | Central database locked down 18093 | -4/Extension | Rescued a captive Derelict 18094 | -4/Extension | Rescued a captive Derelict 18177 | -4/Extension | Rescued a captive Derelict 18624 | -4/Extension | Spotted B-86 Titan 18662 | -4/Extension | Destroyed B-86 Titan 18947 | -4/Extension | Build established: Botlord-Gunner 19217 | -4/Extension | Spotted B-86 Titan 19243 | -4/Extension | Destroyed B-86 Titan 19248 | -4/Extension | Build established: Botlord-Tank 19378 | -4/Extension | Door terminal overloaded 19379 | -4/Extension | Rescued a captive Derelict 19380 | -4/Extension | Rescued a captive Derelict 19458 | -4/Extension | Rescued A7 19635 | -4/Extension | Rescued a captive Derelict 19647 | -4/Extension | Rescued a captive Derelict 19652 | -4/Extension | Rescued a captive Derelict 19703 | -4/Extension | Discovered exit to Research (range 10) 19704 | -4/Extension | Discovered new exit (range 6) 19712 | -4/Extension | Identified exit to Cetus 19740 | -4/Extension | Entered Cetus 19740 | -4/Cetus | Accompanied by 4 allies (A7) 19745 | -4/Cetus | Acquired a Cetus Manufacturing Module code from A7 19760 | -4/Cetus | Spotted Cetus Guard 19760 | -4/Cetus | Spotted Cetus Guard 19762 | -4/Cetus | Allies destroyed Cetus Guard 19762 | -4/Cetus | Spotted Cetus Guard 19764 | -4/Cetus | Spotted Cetus Guard 19768 | -4/Cetus | Allies destroyed Cetus Guard 19777 | -4/Cetus | Allies destroyed Cetus Guard 19777 | -4/Cetus | Allies destroyed Cetus Guard 19794 | -4/Cetus | Build established: Botlord-Mutant 19818 | -4/Cetus | Cetus Manufacturing Module disabled 19884 | -4/Cetus | Failed to start Cetus Manufacturing Module 19894 | -4/Cetus | Escorted A7 to Cetus Mainframe 19988 | -4/Cetus | Discovered new exit (range 15) 20011 | -4/Cetus | Identified exit to Archives 20046 | -4/Cetus | Destroyed A7 20047 | -4/Cetus | Extracted ID and sensor layout for unrecognized location from A7's data core 20055 | -4/Cetus | Entered Archives 20055 | -4/Archives | Accompanied by 1 ally 20208 | -4/Archives | Discovered new exit (range 16) 20222 | -4/Archives | Discovered new exit (range 16) 20265 | -4/Archives | Discovered exit to Research (range 13) 20352 | -4/Archives | Build established: Botlord-Tank 20656 | -4/Archives | Identified exit to Hub_04(d) 20716 | -4/Archives | Entered Hub_04(d) 21119 | -4/Hub_04(d) | Network Hub disabled 21119 | -4/Hub_04(d) | Network Hub disabled 21223 | -4/Hub_04(d) | Entered Research 21223 | -3/Research | Evolved 2 slots: Utility x2 21475 | -3/Research | Spotted B-86 Titan 21951 | -3/Research | Build established: Botlord-Gunner 22090 | -3/Research | Identified exit to Armory 22090 | -3/Research | Identified exit to Testing 22364 | -3/Research | Entered Armory 22460 | -3/Armory | Fabricated Exp. Signal Interpreter (x1) 22467 | -3/Armory | Local fabrication network quarantined 22698 | -3/Armory | Found Prototype Hackware 22894 | -3/Armory | First assault squad dispatched 23262 | -3/Armory | Found Prototype Launcher 23262 | -3/Armory | Identified Tactical Quantum Warhead 23517 | -3/Armory | Discovered new exit (range 3) 23633 | -3/Armory | Identified exit to Lab 23634 | -3/Armory | Entered Lab 23697 | -3/Lab | Build established: Botlord-Tank 23778 | -3/Lab | Discovered new exit (range 9) 23874 | -3/Lab | Identified exit to Research 23915 | -3/Lab | Hidden lab's door opened automatically 23915 | -3/Lab | Sensor layout match revealed 23916 | -3/Lab | Gained access to the hidden lab's interior 24025 | -3/Lab | Found Alien Artifact 24025 | -3/Lab | Identified Integrated Reactor 24025 | -3/Lab | Installed Integrated Reactor, increased core energy generation (+10) 24046 | -3/Lab | Found Alien Artifact 24083 | -3/Lab | Found Prototype Protection 24083 | -3/Lab | Identified Hvy. Regenerative Plating 24121 | -3/Lab | Found Alien Artifact 24212 | -3/Lab | Found Alien Artifact 24288 | -3/Lab | Found Prototype Energy Cannon 24296 | -3/Lab | Found Prototype Energy Cannon 24305 | -3/Lab | Found Prototype Hackware 24346 | -3/Lab | Found Prototype Special Weapon 24405 | -3/Lab | Entered Research 24405 | -2/Research | Evolved 2 slots: Utility x2 24584 | -2/Research | Identified Exp. System Shield 24595 | -2/Research | Identified Transdimensional Reconstructor 24595 | -2/Research | Identified Core Regenerator 24623 | -2/Research | Discovered new exit (range 54) 24675 | -2/Research | Identified Deep Network Scanner 24705 | -2/Research | Found Prototype Slashing Weapon 24705 | -2/Research | Identified Centrium Greatsword 24753 | -2/Research | Identified exit to Quarantine 24787 | -2/Research | Entered Quarantine 24805 | -2/Quarantine | Found Alien Impact Weapon 24901 | -2/Quarantine | Found Alien Slashing Weapon 24901 | -2/Quarantine | Identified Sigix Broadsword 24950 | -2/Quarantine | Identified Core Reset Matrix 24950 | -2/Quarantine | Identified Core Stripper 24950 | -2/Quarantine | Identified Gui. Remote Datajack 24950 | -2/Quarantine | Identified Potential Cannon (x2) 25009 | -2/Quarantine | Build established: Botlord-Mutant 25024 | -2/Quarantine | Found Alien Artifact 25024 | -2/Quarantine | Identified Dimensional Node Initializer 25024 | -2/Quarantine | Initialized slip node 25027 | -2/Quarantine | Found Dimensional Node Initializer 25037 | -2/Quarantine | Found Alien Artifact 25043 | -2/Quarantine | Found Alien Artifact 25045 | -2/Quarantine | Found Transdimensional Reconstructor 25048 | -2/Quarantine | Found Transdimensional Reconstructor 25557 | -2/Quarantine | Cryocooling Duct disabled 25572 | -2/Quarantine | Ambient heat levels rising (+20) 25572 | -2/Quarantine | Non-combat units ordered to evacuate 25736 | -2/Quarantine | Build established: Bothacker-Mutant 25774 | -2/Quarantine | Cryocooling Duct disabled 25789 | -2/Quarantine | Ambient heat levels rising (+20) 25789 | -2/Quarantine | Combat units ordered to evacuate 25802 | -2/Quarantine | Identified Hpw. Transdimensional Reconstructor (x2) 25802 | -2/Quarantine | Warped through subspace to slip node 25889 | -2/Quarantine | Quarantine Guard activated 26105 | -2/Quarantine | Spotted Quarantine Guard 26122 | -2/Quarantine | Destroyed Quarantine Guard 26130 | -2/Quarantine | Found Alien Artifact 26493 | -2/Quarantine | Spotted Quarantine Guard 26509 | -2/Quarantine | Destroyed Quarantine Guard 26547 | -2/Quarantine | Spotted Quarantine Guard 26571 | -2/Quarantine | Destroyed Quarantine Guard 26604 | -2/Quarantine | Found Alien Artifact 26697 | -2/Quarantine | Spotted Fortress 26822 | -2/Quarantine | Discovered new exit (range 5) 26822 | -2/Quarantine | Spotted Quarantine Guard 26834 | -2/Quarantine | Identified exit to Section 7 26836 | -2/Quarantine | Entered Section 7 26958 | -2/Section 7 | Identified exit to Access 27002 | -2/Section 7 | Spotted S7 Guard 27028 | -2/Section 7 | Destroyed S7 Guard 27046 | -2/Section 7 | Found Core Membrane 27046 | -2/Section 7 | Installed Core Membrane, gained immunity to corruption 27151 | -2/Section 7 | Identified Subatomic Replicator 27151 | -2/Section 7 | Used Subatomic Replicator to replicate Integrated Reactor 27152 | -2/Section 7 | Found Integrated Reactor 27152 | -2/Section 7 | Installed Integrated Reactor, increased core energy generation (+10) 27155 | -2/Section 7 | Installed Integrated Reactor, increased core energy generation (+10) 27168 | -2/Section 7 | Spotted S7 Guard 27176 | -2/Section 7 | Found Alien Artifact 27237 | -2/Section 7 | Destroyed S7 Guard 27359 | -2/Section 7 | Garrison activated, responded to threat 27472 | -2/Section 7 | Spotted Alpha 7 27475 | -2/Section 7 | Warped through subspace 27689 | -2/Section 7 | Found Alien Artifact 27699 | -2/Section 7 | Identified Matter Drive 27704 | -2/Section 7 | Found Transdimensional Reconstructor 27707 | -2/Section 7 | Found Hpw. Transdimensional Reconstructor 27821 | -2/Section 7 | Build established: Botlord-Mutant 27929 | -2/Section 7 | Found Alien Energy Gun 28191 | -2/Section 7 | Found Alien Artifact 28191 | -2/Section 7 | Identified LRC Boosters 28191 | -2/Section 7 | Installed LRC Boosters, increased mass support (+10) 28194 | -2/Section 7 | Found Alien Artifact 28194 | -2/Section 7 | Identified LRC Storage 28194 | -2/Section 7 | Installed LRC Storage, increased inventory capacity (+2) 28208 | -2/Section 7 | Central database locked down 28256 | -2/Section 7 | Installed Integrated Singularity Reactor, increased core energy generation (+20) 28276 | -2/Section 7 | Found Integrated Reactor 28276 | -2/Section 7 | Installed Integrated Reactor, increased core energy generation (+10) 28279 | -2/Section 7 | Found Integrated Reactor 28279 | -2/Section 7 | Installed Integrated Reactor, increased core energy generation (+10) 28347 | -2/Section 7 | Spotted B-99 Colossus 28610 | -2/Section 7 | Spotted Executioner 28617 | -2/Section 7 | Spotted Executioner 28648 | -2/Section 7 | Destroyed Executioner 28676 | -2/Section 7 | Destroyed Executioner 28828 | -2/Section 7 | Spotted Executioner 28828 | -2/Section 7 | Spotted Executioner 28864 | -2/Section 7 | Destroyed Executioner 28867 | -2/Section 7 | Identified Sigix Quantum Sheargun 28888 | -2/Section 7 | Destroyed Executioner 28905 | -2/Section 7 | Found Prototype Processor 28905 | -2/Section 7 | Identified Exp. Core Analyzer 28917 | -2/Section 7 | Found Exp. Targeting Computer 29189 | -2/Section 7 | Build established: Bothacker-Mutant 29448 | -2/Section 7 | Warped through subspace 29461 | -2/Section 7 | Found Alien Artifact 29473 | -2/Section 7 | Entered Access 29473 | -1/Access | Evolved 2 slots: Utility x2 29530 | -1/Access | Spotted B-99 Colossus 29595 | -1/Access | Garrison activated, responded to threat 29776 | -1/Access | Identified Integrity Redistributor 29778 | -1/Access | Build established: Botlord-Mutant 30072 | -1/Access | Garrison activated, responded to threat 30729 | -1/Access | Central database locked down 30766 | -1/Access | Discovered new exit (range 7) 30776 | -1/Access | Entered Command 31046 | -1/Command | Repaired Hcp. Storage Unit 31454 | -1/Command | Spotted M Guard 31454 | -1/Command | Spotted M Guard 31454 | -1/Command | Spotted Combat Programmer 31455 | -1/Command | Spotted Combat Programmer 31543 | -1/Command | Destroyed M Guard 31548 | -1/Command | Destroyed M Guard 31558 | -1/Command | Destroyed Combat Programmer 31565 | -1/Command | Destroyed Combat Programmer 31565 | -1/Command | All MAIN.C guards destroyed 31661 | -1/Command | Found Prototype Device 31661 | -1/Command | Identified AEGIS Remote Shield 31666 | -1/Command | Found Hvy. Regenerative Plating 31676 | -1/Command | Found Exp. Focal Shield 31683 | -1/Command | Found Prototype Special Weapon 31686 | -1/Command | Found Prototype Energy Cannon 31705 | -1/Command | Found Hellfire Missile Launcher 31745 | -1/Command | Found Hvy. Regenerative Plating 31752 | -1/Command | Found AEGIS Remote Shield 31784 | -1/Command | Found Prototype Energy Cannon 31784 | -1/Command | Identified Cld. Nova Cannon 31786 | -1/Command | Identified Exp. Remote Datajack 31869 | -1/Command | Met MAIN.C 31875 | -1/Command | 0b10 Conduit disabled 31997 | -1/Command | Spotted B-99 Colossus 32005 | -1/Command | Assimilated Colossus 10a with formatsys_high 32076 | -1/Command | Identified EMDS 32078 | -1/Command | Discovered new exit (range 20) 32085 | -1/Command | Destroyed 15 combat bots 32278 | -1/Command | Build established: Scavenger-Mutant 33033 | -1/Command | Found Prototype Ballistic Gun 33054 | -1/Command | Identified Multirail 33060 | -1/Command | Destroyed MAIN.C Shell 33063 | -1/Command | MAIN.C activated Command garrisons 33153 | -1/Command | Destroyed 9 combat bots 33154 | -1/Command | Used Integrity Redistributor, redistributed integrity from core (-310) 33173 | -1/Command | Lost 4 parts (1n3u) 33208 | -1/Command | Destroyed MAIN.C 33224 | -1/Command | Phase Generator disabled 33249 | -1/Command | Lost 4 parts (2n2u) 33258 | -1/Command | Destroyed 13 combat bots 33519 | -1/Command | Build established: Scavenger-Gunner 33855 | -1/Command | Build established: Scavenger-Gladiator 33947 | -1/Command | Found Prototype Energy Cannon 33947 | -1/Command | Identified Imp. Potential Cannon 33965 | -1/Command | Found Prototype Device 33965 | -1/Command | Identified Exp. Transmission Jammer 33968 | -1/Command | Found Prototype Device 33968 | -1/Command | Identified Femtoactuators 33972 | -1/Command | Found Prototype Device 33972 | -1/Command | Identified Exp. Phase Shifter 35423 | -1/Command | Spotted B-99 Colossus 35549 | -1/Command | Discovered new exit (range 19) 35623 | -1/Command | Destroyed B-99 Colossus 35653 | -1/Command | Found Exp. Targeting Computer 35669 | -1/Command | Found Multirail 36171 | -1/Command | Found Enh. Gamma Bomb Array 36825 | -1/Command | Found Zero-point Reactor 36829 | -1/Command | Found Zero-point Reactor 36878 | -1/Command | Found Prototype Processor 36878 | -1/Command | Identified Exp. Armor Integrity Analyzer 36990 | -1/Command | Found Enh. Force Lance 37048 | -1/Command | Found Prototype Processor 37048 | -1/Command | Identified Spectral Analyzer 37052 | -1/Command | Found Spectral Analyzer 37131 | -1/Command | Build established: Hauler-Gladiator 37797 | -1/Command | Build established: Scavenger-Mutant 37864 | -1/Command | Warped through subspace to slip node 37864 | -1/Command | Discovered new exit (range 5) 37865 | -1/Command | Core integrity fell below 50% 37872 | -1/Command | Entered Access_0 37875 | -1/Access_0 | Met Architect 37888 | -1/Access_0 | Destroyed A8 37889 | -1/Access_0 | Architect warped through subspace 37915 | -1/Access_0 | Found Exp. Thermal Shield 37928 | -1/Access_0 | Architect warped through subspace 37968 | -1/Access_0 | Architect warped through subspace 38000 | -1/Access_0 | Architect warped through subspace 38028 | -1/Access_0 | Architect warped through subspace 38050 | -1/Access_0 | Architect warped through subspace 38072 | -1/Access_0 | Architect warped through subspace 38089 | -1/Access_0 | Architect warped through subspace 38126 | -1/Access_0 | Architect warped through subspace 38126 | -1/Access_0 | Subspace Access Node disabled 38147 | -1/Access_0 | Architect warped through subspace 38182 | -1/Access_0 | Architect warped through subspace 38210 | -1/Access_0 | Architect warped through subspace 38220 | -1/Access_0 | A6 warped into view 38229 | -1/Access_0 | Destroyed A6 38244 | -1/Access_0 | Architect warped through subspace 38268 | -1/Access_0 | Architect warped through subspace 38270 | -1/Access_0 | Build established: Hauler-Assassin 38295 | -1/Access_0 | Architect warped through subspace 38320 | -1/Access_0 | Architect warped through subspace 38321 | -1/Access_0 | Subspace Access Node disabled 38332 | -1/Access_0 | Architect warped through subspace 38353 | -1/Access_0 | Architect warped through subspace 38368 | -1/Access_0 | Architect warped through subspace 38382 | -1/Access_0 | Architect warped through subspace 38393 | -1/Access_0 | Architect warped through subspace 38401 | -1/Access_0 | Architect warped through subspace 38422 | -1/Access_0 | Architect warped through subspace 38445 | -1/Access_0 | Architect warped through subspace 38445 | -1/Access_0 | Subspace Access Node disabled 38489 | -1/Access_0 | Found Exp. Thermal Shield 38515 | -1/Access_0 | Architect warped through subspace 38546 | -1/Access_0 | Architect warped through subspace 38548 | -1/Access_0 | Found Alien Energy Gun 38573 | -1/Access_0 | Architect warped through subspace 38590 | -1/Access_0 | Architect warped through subspace 38592 | -1/Access_0 | Lost 8 parts (2n4u2w) 38679 | -1/Access_0 | Subspace Access Node disabled 38682 | -1/Access_0 | Core integrity fell below 20% 38753 | -1/Access_0 | Destroyed Architect 38754 | -1/Access_0 | Architect triggered a singularity event 38755 | -1/Access_0 | Released all parts (20) 38755 | -1/Access_0 | Extracted unknown sensor trigger ID from Architect's data core 38756 | -1/Access_0 | Found Hpw. Transdimensional Reconstructor 38756 | -1/Access_0 | Warped through subspace to slip node 38756 | -1/Access_0 | Discovered new exit (range 8) 38760 | *** | Escaped singularity! Last Messages --------------- 38755_ Released Exp. Coolant Injector. 38755_ Released Exp. Armor Integrity Analyzer. 38755_ Released Spectral Analyzer. 38755_ Released Exp. Energy Well. 38755_ Released Adv. Terrain Scan Processor. 38755_ Released Femtoactuators. 38755_ Released Exp. Coolant Injector. 38755_ Released Exp. Biometal Heavy Treads. 38755_ Released Dimensional Manipulator. 38755_ Released Exp. Power Amplifier. 38755_ Released Cld. Nova Cannon. 38755_ Acquired data core, extracted unknown sensor trigger ID. 38756_ A0_COM: 9. 38756_ Acquired Hpw. Transdimensional Reconstructor. 38756_ Warped through subspace, drawn to slip node. 38756_ EXIT=FOUND 38757_ A0_COM: 8. 38758_ A0_COM: 7. 38759_ A0_COM: 6. 38760_ A0_COM: 5. Map ----- +----------------------------------------------------+ | | | | | | | | | | | | | | | | | | | | | | | | | | | | | | | | | ?????????????????????????????????????????????????? | | ?????????????????????????????????????????????????? | | ?????????????????????????????????????????????????? | | ?????????????????????????????????????????????????? | | ?????????????????????????????????????????????????? | | ?????????????????????????????????????????????????? | | ????????????????????????###??????????????????????? | | ???????????????????????## ##?????????????????????? | | ???????????????????????# #?????????????????????? | | ???????????????????????# @ #?????????????????????? | | ??????????????????????## #?????????????????????? | | ??????????????????????# #?????????????????????? | | ??????????????????????# ##?????????????????????? | | ??????????????????????## #?????????????????????? | | ??????????????????????# #?????????????????????? | | ??????????????????????# ##?????????????????????? | | ??????????????????????# < #?????????????????????? | | ??????????????????????# ##?????????????????????? | | ??????????????????????## #??????????????????????? | | ???????????????????????####??????????????????????? | | ?????????????????????????????????????????????????? | | ?????????????????????????????????????????????????? | | ?????????????????????????????????????????????????? | | ?????????????????????????????????????????????????? | | ?????????????????????????????????????????????????? | | ?????????????????????????????????????????????????? | | ?????????????????????????????????????????????????? | | ?????????????????????????????????????????????????? | | ?????????????????????????????????????????????????? | | ?????????????????????????????????????????????????? | | ?????????????????????????????????????????????????? | | ?????????????????????????????????????????????????? | | ?????????????????????????????????????????????????? | | ?????????????????????????????????????????????????? | +----------------------------------------------------+ Best States ------------- Heat Dissipation 90 Coolant Potential 240 Energy Generation 114 Energy Capacity 2325 Matter Stores 800 Matter Capacity 1300 Sight Range 24 Robot Scan Range 30 Terrain Scan Range 24 Terrain Scan Density 210 Jamming Range 22 Power Amplification 40 Additional Mass Support 25 Armor Coverage 2400 Resistance: KI 40 Resistance: TH 30 Resistance: EM 90 Utility Shielding 66 Weapon Shielding 66 Weapon Cycling 25 Melee Speed Boost 50 Phase Shifting 20 Evasion (%) 60 Targeting Accuracy 12 Target Analysis 8 Core Analysis 15 Armor Integrity Analysis 90 Recoil Reduction 4 Particle Charging 25 Salvage Targeting 3 Offensive Hacking 37 Defensive Hacking 26 Relay Coupler Types 173 Relay Coupler Value 4 Item Schematics ----------------- Shock Bomb Launcher | -8/Materials | Scanalyzed Exp. Signal Interpreter | -6/Factory | Scanalyzed Hyp. Mass Driver | -4/Hub_04(d) | Hacked Cmb. Linear Gravjet | -3/Armory | Hacked Biometal Heavy Treads | -2/Quarantine | Hacked Enh. Quantum Rifle | -2/Quarantine | Hacked Adv. Cloaking Device | -1/Access | Hacked Robot Schematics ------------------ S-43 Plague | -2/Quarantine | Hacked G-73 Enforcer | -2/Quarantine | Hacked Fabricated ------------ Exp. Signal Interpreter | x1 | -5/Factory Arm. Heavy Treads | x2 | -4/Factory | Preloaded Exp. Signal Interpreter | x1 | -3/Armory Alien Tech Used ----------------- Integrated Reactor Sigix Broadsword Dimensional Node Initializer High-powered Transdimensional Reconstructor Core Membrane Subatomic Replicator Transdimensional Reconstructor Matter Drive LRC Boosters LRC Storage Integrated Singularity Reactor Sigix Quantum Sheargun Core Stripper Integrity Redistributor Achievements -------------- None Challenges ------------ None Game ------ Seed FocalHardlightDevice Manual? 0 Play Time 05:55:25 Cumulative 1623.9 hours Start 2020.09.26 @ 12:01:36 End 2020.09.27 @ 12:46:41 Sessions 5 Manual Loads 0 Difficulty Rogue Special Mode None Game No. 2469 Rogue 2462 Adventurer 0 Explorer 7 Win Type 6 Total 148 Types 40/19/58/3/3/5/18/1/1 Lore% 99 Gallery% 99 Achievement% 100 Wizard Run 0 Options --------- ASCII 0 Keyboard 1 Movement Numpad Keybinds 1 Fullscreen 1 Font 18/SmallcapsGlow Map View 76x50 Tactical HUD 1 Map Filters NONE Filters NONE Steam 1 RUN: 2eeb5ae9-48d9-42d3-9a52-a904ae3bfb6a